Workbook

Sheet DAMAN-SIL
A1: GANPATI PETROCHEMICALS
A2: Consigment Stockist of : HALDIA PETROCHEMICALS LTD.
A3: 152,Sanjay Bldg. No. 6,Mittal Ind.Estate,Andheri Kurla Road,Marol,Andheri(East),MUMBAI-400 059.
A4: Tel. 28509801 / 28517451 / 32460637 Telefax. 28509802 / E- MAIL ganpetro@vsnl.com
A5: HDPE / PP / LLDPE PRICES EX-HALDIA PETROCHEMICALS LTD. PLANT FOR DAMAN & SILVASSA
A6: Daman W.H. Add :- House no. DGGP / 10-B, Survey No. 747 & 748, Village Kalaria, Nani Daman, Daman - 396210, Tel:-0260-2240086, 9377319643
A7: HDPE, LLDPE & PP PRICE W.E.F. DT. 15.05.2014
A8: GRADE | B8: BASIC | C8: LESS. | D8: LESS. | E8: ADD E.D | F8: ADD CST | G8: ADD | H8: ADD S.T. | I8: CASH AMT
A9: HDPE | C9: C.D. | D9: LOC.SUB | E9: 0.1236 | F9: 0.02 | G9: TRANSP | H9: 0.0309 | I9: PMT
A10: M 6007L / M 5005L | B10: 110050 | C10: 1400 | D10: 7350 | E10: =+(B10-C10-D10)*0.1236 -> 12520.68 | F10: =+(B10-C10-D10+E10)*0.02 -> 2276.4136 | G10: 3272 | H10: =+G10*0.0309 -> 101.1048 | I10: =+B10-C10-D10+E10+F10+G10+H10 -> 119470.1984
A11: M 6007LU | B11: 111550 | C11: 1400 | D11: 7350 | E11: =+(B11-C11-D11)*0.1236 -> 12706.08 | F11: =+(B11-C11-D11+E11)*0.02 -> 2310.1216 | G11: 3272 | H11: =+G11*0.0309 -> 101.1048 | I11: =+B11-C11-D11+E11+F11+G11+H11 -> 121189.3064
A12: M 5002L | B12: 109550 | C12: 1400 | D12: 7350 | E12: 12458.88 | F12: 2265.1776 | G12: 3272 | H12: 101.1048 | I12: 118897.1624
A13: HD BM B 6401 | B13: 111500 | C13: 1400 | D13: 7350 | E13: 12699.9 | F13: 2308.998 | G13: 3272 | H13: 101.1048 | I13: 121132.0028
A14: HD BM E 5201 | B14: 113000 | C14: 1400 | D14: 7350 | E14: 12885.3 | F14: 2342.706 | G14: 3272 | H14: 101.1048 | I14: 122851.1108
A15: HD BM E5201S | B15: 112000 | C15: 1400 | D15: 7350 | E15: 12761.7 | F15: 2320.234 | G15: 3272 | H15: 101.1048 | I15: 121705.0388
A16: MBM B 5500 | B16: 116200 | C16: 1400 | D16: 7100 | E16: 13311.72 | F16: 2420.2344 | G16: 3272 | H16: 101.1048 | I16: 126805.0592
A17: HM FILM F 5600/5400 | B17: 113950 | C17: 1400 | D17: 7350 | E17: 13002.72 | F17: 2364.0544 | G17: 3272 | H17: 101.1048 | I17: 123939.8792
A18: RAF/MFIL R5801 | B18: 111350 | C18: 1400 | D18: 6100 | E18: 12835.86 | F18: 2333.7172 | G18: 3272 | H18: 101.1048 | I18: 122392.682
A19: RAF/MFIL HD T9 | B19: 108350 | C19: 1400 | D19: 6100 | E19: 12465.06 | F19: 2266.3012 | G19: 3272 | H19: 101.1048 | I19: 118954.466
A20: HD FILM HDT6 / F5001 | B20: 110850 | C20: 1400 | D20: 7200 | E20: 12638.1 | F20: 2297.762 | G20: 3272 | H20: 101.1048 | I20: 120558.9668
A21: PIPE P5200UV | B21: 116250 | C21: 1400 | D21: 7100 | E21: 13317.9 | F21: 2421.358 | G21: 3272 | H21: 101.1048 | I21: 126862.3628
A22: IM M 5018L/M 5025L/M5818 | B22: 107900 | C22: 1400 | D22: 7600 | E22: 12224.04 | F22: 2222.4808 | G22: 3272 | H22: 101.1048 | I22: 116719.6256
A23: RAF HD T10 / HD T10S | B23: 110950 | C23: 1400 | D23: 6400 | E23: 12749.34 | F23: 2317.9868 | G23: 3272 | H23: 101.1048 | I23: 121590.4316
A24: PIPE P 5300 | B24: 118700 | C24: 1400 | D24: 7750 | E24: 13540.38 | F24: 2461.8076 | G24: 3272 | H24: 101.1048 | I24: 128925.2924
A25: PIPE P5200(P.E-63) | B25: 114750 | C25: 1400 | D25: 7100 | E25: 13132.5 | F25: 2387.65 | G25: 3272 | H25: 101.1048 | I25: 125143.2548
A26: HD T9C | B26: 103850 | C26: 0 | D26: 2350 | E26: 12545.4 | F26: 2280.908 | G26: 3272 | H26: 101.1048 | I26: 119699.4128
A27: OG | B27: 102850 | C27: 0 | D27: 2300 | E27: =+(B27-C27-D27)*0.1236 -> 12427.98 | F27: =+(B27-C27-D27+E27)*0.02 -> 2259.5596 | G27: 3272 | H27: =+G27*0.0309 -> 101.1048 | I27: =+B27-C27-D27+E27+F27+G27+H27 -> 118610.6444
A28: PP | F28: 0
A29: FILM F 110 | B29: 110100 | C29: 1400 | D29: 6000 | E29: =+(B29-C29-D29)*0.1236 -> 12693.72 | F29: 2307.8744 | G29: 3272 | H29: =+G29*0.0309 -> 101.1048 | I29: 121074.6992
A30: HPIM M 103 | B30: 108900 | C30: 1400 | D30: 6900 | E30: 12434.16 | F30: 2260.6832 | G30: 3272 | H30: 101.1048 | I30: 118667.948
A31: HPIM M 110 | B31: 106550 | C31: 1400 | D31: 6250 | E31: 12224.04 | F31: 2222.4808 | G31: 3272 | H31: 101.1048 | I31: 116719.6256
A32: TF T 103 / T 105N | B32: 109650 | C32: 1400 | D32: 5700 | E32: 12675.18 | F32: 2304.5036 | G32: 3272 | H32: 101.1048 | I32: 120902.7884
A33: RAFFIA R 103 | B33: 113450 | C33: 1400 | D33: 6900 | E33: 12996.54 | F33: 2362.9308 | G33: 3272 | H33: 101.1048 | I33: 123882.5756
A34: BOPP F 103 / F 103S | B34: 111350 | C34: 1400 | D34: 6350 | E34: 12804.96 | F34: 2328.0992 | G34: 3272 | H34: 101.1048 | I34: 122106.164
A35: PP M 108/ M106 | B35: 106450 | C35: 1400 | D35: 6650 | E35: 12162.24 | F35: 2211.2448 | G35: 3272 | H35: 101.1048 | I35: 116146.5896
A36: PP F135 / E125 | B36: 109450 | C36: 1400 | D36: 5750 | E36: 12644.28 | F36: 2298.8856 | G36: 3272 | H36: 101.1048 | I36: 120616.2704
A37: PP OG | B37: 101550 | C37: 0 | D37: 0 | E37: 12551.58 | F37: 2282.0316 | G37: 3272 | H37: 101.1048 | I37: 119756.7164
A38: PP PS | B38: 97550 | C38: 0 | D38: 0 | E38: 12057.18 | F38: 2192.1436 | G38: 3272 | H38: 101.1048 | I38: 115172.4284
A39: PP WS | B39: 95550 | C39: 0 | D39: 0 | E39: 11809.98 | F39: 2147.1996 | G39: 3272 | H39: 101.1048 | I39: 112880.2844
A40: PP CP/RCP | F40: 0
A41: PPCP M 311T | B41: 114400 | C41: 1400 | D41: 7200 | E41: =+(B41-C41-D41)*0.1236 -> 13076.88 | F41: 2377.5376 | G41: 3272 | H41: =+G41*0.0309 -> 101.1048 | I41: 124627.5224
A42: PPCP M 340 / M365 | B42: 112100 | C42: 1400 | D42: 6850 | E42: 12835.86 | F42: 2333.7172 | G42: 3272 | H42: 101.1048 | I42: 122392.682
A43: PP CP M 310 | B43: 112800 | C43: 1400 | D43: 6800 | E43: 12928.56 | F43: 2350.5712 | G43: 3272 | H43: 101.1048 | I43: 123252.236
A44: PP CP M 312 | B44: 110900 | C44: 1400 | D44: 7050 | E44: 12662.82 | F44: 2302.2564 | G44: 3272 | H44: 101.1048 | I44: 120788.1812
A45: PP CP M 304 / M 325 | B45: 110850 | C45: 1400 | D45: 7050 | E45: 12656.64 | F45: 2301.1328 | G45: 3272 | H45: 101.1048 | I45: 120730.8776
A46: PP CP M 307 / M 315 | B46: 110350 | C46: 1400 | D46: 7000 | E46: 12601.02 | F46: 2291.0204 | G46: 3272 | H46: 101.1048 | I46: 120215.1452
A47: PP RCP B 200 | B47: 111200 | C47: 1400 | D47: 6200 | E47: 12804.96 | F47: 2328.0992 | G47: 3272 | H47: 101.1048 | I47: 122106.164
A48: PP RCP B202S | B48: 115200 | C48: 1400 | D48: 5800 | E48: 13348.8 | F48: 2426.976 | G48: 3272 | H48: 101.1048 | I48: 127148.8808
A49: PP RCP M212S | B49: 113400 | C49: 1400 | D49: 7050 | E49: 12971.82 | F49: 2358.4364 | G49: 3272 | H49: 101.1048 | I49: 123653.3612
A50: LLDPE | F50: 0
A51: FILM 71601D | B51: 115950 | C51: 1400 | D51: 7200 | E51: =+(B51-C51-D51)*0.1236 -> 13268.46 | F51: 2412.3692 | G51: 3272 | H51: =+G51*0.0309 -> 101.1048 | I51: 126403.934
A52: FILM 71501S,71601W | B52: 115400 | C52: 1400 | D52: 7650 | E52: 13144.86 | F52: 2389.8972 | G52: 3272 | H52: 101.1048 | I52: 125257.862
A53: FILM 71602 S / W | B53: 115400 | C53: 1400 | D53: 7650 | E53: 13144.86 | F53: 2389.8972 | G53: 3272 | H53: 101.1048 | I53: 125257.862
A54: ROTO 73005 T/73204 T | B54: 114250 | C54: 1400 | D54: 6950 | E54: 13089.24 | F54: 2379.7848 | G54: 3272 | H54: 101.1048 | I54: 124742.1296
A55: ROTO 73005 TU | B55: 115750 | C55: 1400 | D55: 6950 | E55: 13274.64 | F55: 2413.4928 | G55: 3272 | H55: 101.1048 | I55: 126461.2376
A56: EC 72307 E | B56: 118450 | C56: 1400 | D56: 7950 | E56: 13484.76 | F56: 2451.6952 | G56: 3272 | H56: 101.1048 | I56: 128409.56
A57: LLT - 12 | B57: 117950 | C57: 1400 | D57: 7950 | E57: =+(B57-C57-D57)*0.1236 -> 13422.96 | F57: 2440.4592 | G57: 3272 | H57: =+G57*0.0309 -> 101.1048 | I57: 127836.524
A58: OG | B58: 108850 | C58: 0 | D58: 2450 | E58: 13151.04 | F58: 2391.0208 | G58: 3272 | H58: 101.1048 | I58: 125315.1656
A59: POST SALES QUANTITY DISCOUNT AS APPLICABLE
A60: QTY. MT FOR HD / LL | B60: >= 10 | C60: >=15 | D60: >=30 | E60: >=60 | F60: >= 100 | G60: >= 200 | H60: >= 400
A61: HDPE/LLDPE | B61: 300/- | C61: 300/- | D61: 400/- | E61: 450/- | F61: 550/- | G61: 650/- | H61: 750/-
A62: QTY. MT FOR PP | B62: >=15 | C62: >=30 | D62: >=60 | E62: >=100 | F62: >=200 | G62: >=400
A63: PP | B63: 300/- | C63: 400/- | D63: 450/- | E63: 550/- | F63: 650/- | G63: 750/-
A64: · FOR CREDIT PURCHASE INTREST FREE CREDIT WILL BE 14 DAYS FROM THE DATE OF INVOICE. AN EPI
A65: RS. 100 / MT PER DAY FOR EX-PLANT
A66: · Trade Discount of Rs. 4000 PMT applicable on R103 - to be adjusted pre-exice basis on Ex-plant sales only.
A67: · Trade Discount of Rs. 3000 PMT applicable on R5801 - to be adjusted pre-exice basis on Ex-plant sales only.
A68: · Trade Discount of Rs. 2000 PMT applicable on B5500 - to be adjusted pre-exice basis on Ex-plant sales only.
A69: · NON PRIME GRADE RS.800/MT LESS THAN THE BASIC PRIME GRADE.
A70: · CHEQUE RETURN PENALTY RS.1000/-PER INSTRUMENT.
A71: · UNLOADING & VARAI CHARGES TO BE BORNE BY THE CUSTOMER.
A72: · “C” FORM REQUIRED IN ADVANCE.
A73: · QUANTITY DISCOUNT WOULD NOT BE APPLICABLE ON COMBINATION OF HDPE AND LLDPE GRADES.
A74: · PRICE MAY CHANGE WITHOUT ANY PRIOR NOTICE. PRICE PREVAILING AT THE TIME OF DISPATCH WILL APPLY.
A75: REGARDS
A76: HITESH SHAH - 9820106078
A77: MUKESH SHAH - 9322238059

Sheet DADRA
A1: GANPATI PETROCHEMICALS
A2: Consigment Stockist of : HALDIA PETROCHEMICALS LTD.
A3: 152,Sanjay Bldg. No. 6,Mittal Ind.Estate,Andheri Kurla Road,Marol,Andheri(East),MUMBAI-400 059.
A4: Tel. 28509801 / 28517451 / 32460637 Telefax. 28509802 / E- MAIL ganpetro@vsnl.com
A5: HDPE / PP / LLDPE PRICES EX-HALDIA PETROCHEMICALS LTD. PLANT FOR DADRA
A6: Daman W.H. Add :- House no. DGGP / 10-B, Survey No. 747 & 748, Village Kalaria, Nani Daman, Daman - 396210, Tel:-0260-2240086, 9377319643
A7: HDPE, LLDPE & PP PRICE W.E.F. DT. 15.05.2014
A8: GRADE | B8: BASIC | C8: LESS. | D8: LESS. | E8: ADD E.D | F8: ADD CST | G8: ADD | H8: ADD S.T. | I8: CASH AMT
A9: HDPE | C9: C.D. | D9: LOC.SUB | E9: 0.1236 | F9: 0.02 | G9: TRANSP | H9: 0.0309 | I9: PMT
A10: M 6007L / M 5005L | B10: 110050 | C10: 1400 | D10: 7350 | E10: =+(B10-C10-D10)*0.1236 -> 12520.68 | F10: =+(B10-C10-D10+E10)*0.02 -> 2276.4136 | G10: 3278 | H10: =+G10*0.0309 -> 101.2902 | I10: =+B10-C10-D10+E10+F10+G10+H10 -> 119476.3838
A11: M 6007LU | B11: 111550 | C11: 1400 | D11: 7350 | E11: =+(B11-C11-D11)*0.1236 -> 12706.08 | F11: =+(B11-C11-D11+E11)*0.02 -> 2310.1216 | G11: 3278 | H11: =+G11*0.0309 -> 101.2902 | I11: =+B11-C11-D11+E11+F11+G11+H11 -> 121195.4918
A12: M 5002L | B12: 109550 | C12: 1400 | D12: 7350 | E12: 12458.88 | F12: 2265.1776 | G12: 3278 | H12: 101.2902 | I12: 118903.3478
A13: HD BM B 6401 | B13: 111500 | C13: 1400 | D13: 7350 | E13: 12699.9 | F13: 2308.998 | G13: 3278 | H13: 101.2902 | I13: 121138.1882
A14: HD BM E 5201 | B14: 113000 | C14: 1400 | D14: 7350 | E14: 12885.3 | F14: 2342.706 | G14: 3278 | H14: 101.2902 | I14: 122857.2962
A15: HD BM E5201S | B15: 112000 | C15: 1400 | D15: 7350 | E15: 12761.7 | F15: 2320.234 | G15: 3278 | H15: 101.2902 | I15: 121711.2242
A16: MBM B 5500 | B16: 116200 | C16: 1400 | D16: 7100 | E16: 13311.72 | F16: 2420.2344 | G16: 3278 | H16: 101.2902 | I16: 126811.2446
A17: HM FILM F 5600/5400 | B17: 113950 | C17: 1400 | D17: 7350 | E17: 13002.72 | F17: 2364.0544 | G17: 3278 | H17: 101.2902 | I17: 123946.0646
A18: RAF/MFIL R5801 | B18: 111350 | C18: 1400 | D18: 6100 | E18: 12835.86 | F18: 2333.7172 | G18: 3278 | H18: 101.2902 | I18: 122398.8674
A19: RAF/MFIL HD T9 | B19: 108350 | C19: 1400 | D19: 6100 | E19: 12465.06 | F19: 2266.3012 | G19: 3278 | H19: 101.2902 | I19: 118960.6514
A20: HD FILM HDT6 / F5001 | B20: 110850 | C20: 1400 | D20: 7200 | E20: 12638.1 | F20: 2297.762 | G20: 3278 | H20: 101.2902 | I20: 120565.1522
A21: PIPE P5200UV | B21: 116250 | C21: 1400 | D21: 7100 | E21: 13317.9 | F21: 2421.358 | G21: 3278 | H21: 101.2902 | I21: 126868.5482
A22: IM M 5018L/M 5025L/M5818 | B22: 107900 | C22: 1400 | D22: 7600 | E22: 12224.04 | F22: 2222.4808 | G22: 3278 | H22: 101.2902 | I22: 116725.811
A23: RAF HD T10 / HD T10S | B23: 110950 | C23: 1400 | D23: 6400 | E23: 12749.34 | F23: 2317.9868 | G23: 3278 | H23: 101.2902 | I23: 121596.617
A24: PIPE P 5300 | B24: 118700 | C24: 1400 | D24: 7750 | E24: 13540.38 | F24: 2461.8076 | G24: 3278 | H24: 101.2902 | I24: 128931.4778
A25: PIPE P5200(P.E-63) | B25: 114750 | C25: 1400 | D25: 7100 | E25: 13132.5 | F25: 2387.65 | G25: 3278 | H25: 101.2902 | I25: 125149.4402
A26: HD T9C | B26: 103850 | C26: 0 | D26: 2350 | E26: 12545.4 | F26: 2280.908 | G26: 3278 | H26: 101.2902 | I26: 119705.5982
A27: OG | B27: 102850 | C27: 0 | D27: 2300 | E27: =+(B27-C27-D27)*0.1236 -> 12427.98 | F27: =+(B27-C27-D27+E27)*0.02 -> 2259.5596 | G27: 3278 | H27: =+G27*0.0309 -> 101.2902 | I27: =+B27-C27-D27+E27+F27+G27+H27 -> 118616.8298
A28: PP | F28: 0
A29: FILM F 110 | B29: 110100 | C29: 1400 | D29: 6000 | E29: =+(B29-C29-D29)*0.1236 -> 12693.72 | F29: 2307.8744 | G29: 3278 | H29: =+G29*0.0309 -> 101.2902 | I29: 121080.8846
A30: HPIM M 103 | B30: 108900 | C30: 1400 | D30: 6900 | E30: 12434.16 | F30: 2260.6832 | G30: 3278 | H30: 101.2902 | I30: 118674.1334
A31: HPIM M 110 | B31: 106550 | C31: 1400 | D31: 6250 | E31: 12224.04 | F31: 2222.4808 | G31: 3278 | H31: 101.2902 | I31: 116725.811
A32: TF T 103 / T 105N | B32: 109650 | C32: 1400 | D32: 5700 | E32: 12675.18 | F32: 2304.5036 | G32: 3278 | H32: 101.2902 | I32: 120908.9738
A33: RAFFIA R 103 | B33: 113450 | C33: 1400 | D33: 6900 | E33: 12996.54 | F33: 2362.9308 | G33: 3278 | H33: 101.2902 | I33: 123888.761
A34: BOPP F 103 / F 103S | B34: 111350 | C34: 1400 | D34: 6350 | E34: 12804.96 | F34: 2328.0992 | G34: 3278 | H34: 101.2902 | I34: 122112.3494
A35: PP M 108/ M106 | B35: 106450 | C35: 1400 | D35: 6650 | E35: 12162.24 | F35: 2211.2448 | G35: 3278 | H35: 101.2902 | I35: 116152.775
A36: PP F135 / E125 | B36: 109450 | C36: 1400 | D36: 5750 | E36: 12644.28 | F36: 2298.8856 | G36: 3278 | H36: 101.2902 | I36: 120622.4558
A37: PP OG | B37: 101550 | C37: 0 | D37: 0 | E37: 12551.58 | F37: 2282.0316 | G37: 3278 | H37: 101.2902 | I37: 119762.9018
A38: PP PS | B38: 97550 | C38: 0 | D38: 0 | E38: 12057.18 | F38: 2192.1436 | G38: 3278 | H38: 101.2902 | I38: 115178.6138
A39: PP WS | B39: 95550 | C39: 0 | D39: 0 | E39: 11809.98 | F39: 2147.1996 | G39: 3278 | H39: 101.2902 | I39: 112886.4698
A40: PP CP/RCP | F40: 0
A41: PPCP M 311T | B41: 114400 | C41: 1400 | D41: 7200 | E41: =+(B41-C41-D41)*0.1236 -> 13076.88 | F41: 2377.5376 | G41: 3278 | H41: =+G41*0.0309 -> 101.2902 | I41: 124633.7078
A42: PPCP M 340 / M365 | B42: 112100 | C42: 1400 | D42: 6850 | E42: 12835.86 | F42: 2333.7172 | G42: 3278 | H42: 101.2902 | I42: 122398.8674
A43: PP CP M 310 | B43: 112800 | C43: 1400 | D43: 6800 | E43: 12928.56 | F43: 2350.5712 | G43: 3278 | H43: 101.2902 | I43: 123258.4214
A44: PP CP M 312 | B44: 110900 | C44: 1400 | D44: 7050 | E44: 12662.82 | F44: 2302.2564 | G44: 3278 | H44: 101.2902 | I44: 120794.3666
A45: PP CP M 304 / M 325 | B45: 110850 | C45: 1400 | D45: 7050 | E45: 12656.64 | F45: 2301.1328 | G45: 3278 | H45: 101.2902 | I45: 120737.063
A46: PP CP M 307 / M 315 | B46: 110350 | C46: 1400 | D46: 7000 | E46: 12601.02 | F46: 2291.0204 | G46: 3278 | H46: 101.2902 | I46: 120221.3306
A47: PP RCP B 200 | B47: 111200 | C47: 1400 | D47: 6200 | E47: 12804.96 | F47: 2328.0992 | G47: 3278 | H47: 101.2902 | I47: 122112.3494
A48: PP RCP B202S | B48: 115200 | C48: 1400 | D48: 5800 | E48: 13348.8 | F48: 2426.976 | G48: 3278 | H48: 101.2902 | I48: 127155.0662
A49: PP RCP M212S | B49: 113400 | C49: 1400 | D49: 7050 | E49: 12971.82 | F49: 2358.4364 | G49: 3278 | H49: 101.2902 | I49: 123659.5466
A50: LLDPE | F50: 0
A51: FILM 71601D | B51: 115950 | C51: 1400 | D51: 7200 | E51: =+(B51-C51-D51)*0.1236 -> 13268.46 | F51: 2412.3692 | G51: 3278 | H51: =+G51*0.0309 -> 101.2902 | I51: 126410.1194
A52: FILM 71501S,71601W | B52: 115400 | C52: 1400 | D52: 7650 | E52: 13144.86 | F52: 2389.8972 | G52: 3278 | H52: 101.2902 | I52: 125264.0474
A53: FILM 71602 S / W | B53: 115400 | C53: 1400 | D53: 7650 | E53: 13144.86 | F53: 2389.8972 | G53: 3278 | H53: 101.2902 | I53: 125264.0474
A54: ROTO 73005 T/73204 T | B54: 114250 | C54: 1400 | D54: 6950 | E54: 13089.24 | F54: 2379.7848 | G54: 3278 | H54: 101.2902 | I54: 124748.315
A55: ROTO 73005 TU | B55: 115750 | C55: 1400 | D55: 6950 | E55: 13274.64 | F55: 2413.4928 | G55: 3278 | H55: 101.2902 | I55: 126467.423
A56: EC 72307 E | B56: 118450 | C56: 1400 | D56: 7950 | E56: 13484.76 | F56: 2451.6952 | G56: 3278 | H56: 101.2902 | I56: 128415.7454
A57: LLT - 12 | B57: 117950 | C57: 1400 | D57: 7950 | E57: =+(B57-C57-D57)*0.1236 -> 13422.96 | F57: 2440.4592 | G57: 3278 | H57: =+G57*0.0309 -> 101.2902 | I57: 127842.7094
A58: OG | B58: 108850 | C58: 0 | D58: 2450 | E58: 13151.04 | F58: 2391.0208 | G58: 3278 | H58: 101.2902 | I58: 125321.351
A59: POST SALES QUANTITY DISCOUNT AS APPLICABLE
A60: QTY. MT FOR HD / LL | B60: >= 10 | C60: >=15 | D60: >=30 | E60: >=60 | F60: >= 100 | G60: >= 200 | H60: >= 400
A61: HDPE/LLDPE | B61: 300/- | C61: 300/- | D61: 400/- | E61: 450/- | F61: 550/- | G61: 650/- | H61: 750/-
A62: QTY. MT FOR PP | B62: >=15 | C62: >=30 | D62: >=60 | E62: >=100 | F62: >=200 | G62: >=400
A63: PP | B63: 300/- | C63: 400/- | D63: 450/- | E63: 550/- | F63: 650/- | G63: 750/-
A64: · FOR CREDIT PURCHASE INTREST FREE CREDIT WILL BE 14 DAYS FROM THE DATE OF INVOICE. AN EPI
A65: RS. 100 / MT PER DAY FOR EX-PLANT
A66: · Trade Discount of Rs. 4000 PMT applicable on R103 - to be adjusted pre-exice basis on Ex-plant sales only.
A67: · Trade Discount of Rs. 3000 PMT applicable on R5801 - to be adjusted pre-exice basis on Ex-plant sales only.
A68: · Trade Discount of Rs. 2000 PMT applicable on B5500 - to be adjusted pre-exice basis on Ex-plant sales only.
A69: · NON PRIME GRADE RS.800/MT LESS THAN THE BASIC PRIME GRADE.
A70: · CHEQUE RETURN PENALTY RS.1000/-PER INSTRUMENT.
A71: · UNLOADING & VARAI CHARGES TO BE BORNE BY THE CUSTOMER.
A72: · “C” FORM REQUIRED IN ADVANCE.
A73: · QUANTITY DISCOUNT WOULD NOT BE APPLICABLE ON COMBINATION OF HDPE AND LLDPE GRADES.
A74: · PRICE MAY CHANGE WITHOUT ANY PRIOR NOTICE. PRICE PREVAILING AT THE TIME OF DISPATCH WILL APPLY.
A75: REGARDS
A76: HITESH SHAH - 9820106078
A77: MUKESH SHAH - 9322238059

Sheet GUJARAT (E)
A1: GANPATI PETROCHEMICALS
A2: Consigment Stockist of : HALDIA PETROCHEMICALS LTD.
A3: 152,Sanjay Bldg. No. 6,Mittal Ind.Estate,Andheri Kurla Road,Marol,Andheri(East),MUMBAI-400 059.
A4: Tel. 28509801 / 28517451 / 32460637 Telefax. 28509802 / E- MAIL ganpetro@vsnl.com
A5: HDPE / PP / LLDPE PRICES EX-HALDIA PETROCHEMICALS LTD. PLANT FOR GUJARAT(E)
A6: Daman W.H. Add :- House no. DGGP / 10-B, Survey No. 747 & 748, Village Kalaria, Nani Daman, Daman - 396210, Tel:-0260-2240086, 9377319643
A7: HDPE, LLDPE & PP PRICE W.E.F. DT. 15.05.2014
A8: GRADE | B8: BASIC | C8: LESS. | D8: LESS. | E8: ADD | F8: ADD CST | G8: CASH AMT
A9: HDPE | C9: C.D. | D9: LOC.SUB | E9: 0.1236 | F9: 0.02 | G9: PMT
A10: M 6007L / M 5005L | B10: 110050 | C10: 1400 | D10: 6800 | E10: =+(B10-C10-D10)*0.1236 -> 12588.66 | F10: =+(B10-C10-D10+E10)*0.02 -> 2288.7732 | G10: =+B10-C10-D10+E10+F10 -> 116727.4332 | I10: TRANS.CHARGES PMT.
A11: M 6007LU | B11: 111550 | C11: 1400 | D11: 6800 | E11: =+(B11-C11-D11)*0.1236 -> 12774.06 | F11: =+(B11-C11-D11+E11)*0.02 -> 2322.4812 | G11: =+B11-C11-D11+E11+F11 -> 118446.5412
A12: M 5002L | B12: 109550 | C12: 1400 | D12: 6800 | E12: 12526.86 | F12: 2277.5372 | G12: 116154.3972
A13: HD BM B 6401 | B13: 111500 | C13: 1400 | D13: 6800 | E13: 12767.88 | F13: 2321.3576 | G13: 118389.2376 | H13: LOCATIONS | I13: FREIGHT | J13: ADD S.T.
A14: HD BM E 5201 | B14: 113000 | C14: 1400 | D14: 6800 | E14: 12953.28 | F14: 2355.0656 | G14: 120108.3456 | H14: **T.D. | I14: RS/MT. | J14: 0.0309
A15: HD BM E5201S | B15: 112000 | C15: 1400 | D15: 6800 | E15: 12829.68 | F15: 2332.5936 | G15: 118962.2736
A16: MBM B 5500 | B16: 116200 | C16: 1400 | D16: 6600 | E16: 13373.52 | F16: 2431.4704 | G16: 124004.9904
A17: HM FILM F 5600/5400 | B17: 113950 | C17: 1400 | D17: 6350 | E17: 13126.32 | F17: 2386.5264 | G17: 121712.8464 | H17: AHMD. - 5 | I17: 3265 | J17: =+I17*0.0309 -> 100.8885
A18: RAF/MFIL R5801 | B18: 111350 | C18: 1400 | D18: 5600 | E18: 12897.66 | F18: 2344.9532 | G18: 119592.6132 | H18: HALOL - 5 | I18: 3380 | J18: =+I18*0.0309 -> 104.442
A19: RAF/MFIL HD T9 | B19: 108350 | C19: 1400 | D19: 5600 | E19: 12526.86 | F19: 2277.5372 | G19: 116154.3972 | H19: BARODA - 5 | I19: 3279 | J19: =+I19*0.0309 -> 101.3211
A20: HD FILM HDT6 / F5001 | B20: 110850 | C20: 1400 | D20: 6300 | E20: 12749.34 | F20: 2317.9868 | G20: 118217.3268 | H20: KALOL-M- 5 | I20: 3382 | J20: =+I20*0.0309 -> 104.5038
A21: PIPE P5200UV | B21: 116250 | C21: 1400 | D21: 6600 | E21: 13379.7 | F21: 2432.594 | G21: 124062.294
A22: IM M 5018L/M 5025L/M5818 | B22: 107900 | C22: 1400 | D22: 6350 | E22: 12378.54 | F22: 2250.5708 | G22: 114779.1108 | H22: VATVA-5 | I22: 3381 | J22: =+I22*0.0309 -> 104.4729
A23: RAF HD T10 / HD T10S | B23: 110950 | C23: 1400 | D23: 5900 | E23: 12811.14 | F23: 2329.2228 | G23: 118790.3628 | H23: BHARUCH | I23: 3321 | J23: =+I23*0.0309 -> 102.6189
A24: PIPE P 5300 | B24: 118700 | C24: 1400 | D24: 7200 | E24: 13608.36 | F24: 2474.1672 | G24: 126182.5272 | H24: ANAND | I24: 3230 | J24: =+I24*0.0309 -> 99.807
A25: PIPE P5200(P.E-63) | B25: 114750 | C25: 1400 | D25: 6600 | E25: 13194.3 | F25: 2398.886 | G25: 122343.186
A26: HD T9C | B26: 103850 | C26: 0 | D26: 2350 | E26: 12545.4 | F26: 2280.908 | G26: 116326.308
A27: OG | B27: 102850 | C27: 0 | D27: 2300 | E27: 12427.98 | F27: 2259.5596 | G27: 115237.5396 | L27: `
A28: PP
A29: FILM F 110 | B29: 110100 | C29: 1400 | D29: 5850 | E29: =+(B29-C29-D29)*0.1236 -> 12712.26 | F29: 2311.2452 | G29: =+B29-C29-D29+E29+F29 -> 117873.5052 | H29: *T.D.=TRANSIT DAYS
A30: HPIM M 103 | B30: 108900 | C30: 1400 | D30: 7050 | E30: 12415.62 | F30: 2257.3124 | G30: 115122.9324
A31: HPIM M 110 | B31: 106550 | C31: 1400 | D31: 6450 | E31: 12199.32 | F31: 2217.9864 | G31: 113117.3064
A32: TF T 103 / T 105N | B32: 109650 | C32: 1400 | D32: 5100 | E32: 12749.34 | F32: 2317.9868 | G32: 118217.3268
A33: RAFFIA R 103 | B33: 113450 | C33: 1400 | D33: 7050 | E33: 12978 | F33: 2359.56 | G33: 120337.56
A34: BOPP F 103 / F 103S | B34: 111350 | C34: 1400 | D34: 5300 | E34: 12934.74 | F34: 2351.6948 | G34: 119936.4348
A35: PP M 108/ M106 | B35: 106450 | C35: 1400 | D35: 6850 | E35: 12137.52 | F35: 2206.7504 | G35: 112544.2704
A36: PP F135 / E125 | B36: 109450 | C36: 1400 | D36: 5450 | E36: 12681.36 | F36: 2305.6272 | G36: 117586.9872
A37: PP OG | B37: 101550 | C37: 0 | D37: 0 | E37: 12551.58 | F37: 2282.0316 | G37: 116383.6116
A38: PP PS | B38: 97550 | C38: 0 | D38: 0 | E38: 12057.18 | F38: 2192.1436 | G38: 111799.3236
A39: PP WS | B39: 95550 | C39: 0 | D39: 0 | E39: 11809.98 | F39: 2147.1996 | G39: 109507.1796
A40: PP CP/RCP | E40: =(B40-C40-D40)*16% -> 0 | G40: =(B40-C40-D40)*16%+(B40-C40-D40) -> 0
A41: PPCP M 311T | B41: 114400 | C41: 1400 | D41: 6000 | E41: =+(B41-C41-D41)*0.1236 -> 13225.2 | F41: 2404.504 | G41: =+B41-C41-D41+E41+F41 -> 122629.704
A42: PPCP M 340 / M365 | B42: 112100 | C42: 1400 | D42: 5700 | E42: 12978 | F42: 2359.56 | G42: 120337.56
A43: PP CP M 310 | B43: 112800 | C43: 1400 | D43: 6000 | E43: 13027.44 | F43: 2368.5488 | G43: 120795.9888
A44: PP CP M 312 | B44: 110900 | C44: 1400 | D44: 6050 | E44: 12786.42 | F44: 2324.7284 | G44: 118561.1484
A45: PP CP M 304 / M 325 | B45: 110850 | C45: 1400 | D45: 6300 | E45: 12749.34 | F45: 2317.9868 | G45: 118217.3268
A46: PP CP M 307 / M 315 | B46: 110350 | C46: 1400 | D46: 5850 | E46: 12743.16 | F46: 2316.8632 | G46: 118160.0232
A47: PP RCP B 200 | B47: 111200 | C47: 1400 | D47: 6000 | E47: 12829.68 | F47: 2332.5936 | G47: 118962.2736
A48: PP RCP B202S | B48: 115200 | C48: 1400 | D48: 4850 | E48: 13466.22 | F48: 2448.3244 | G48: 124864.5444
A49: PP RCP M212S | B49: 113400 | C49: 1400 | D49: 5850 | E49: 13120.14 | F49: 2385.4028 | G49: 121655.5428
A50: LLDPE
A51: FILM 71601D | B51: 115950 | C51: 1400 | D51: 6450 | E51: =+(B51-C51-D51)*0.1236 -> 13361.16 | F51: 2429.2232 | G51: =+B51-C51-D51+E51+F51 -> 123890.3832
A52: FILM 71501S,71601W | B52: 115400 | C52: 1400 | D52: 6900 | E52: 13237.56 | F52: 2406.7512 | G52: 122744.3112
A53: FILM 71602 S / W | B53: 115400 | C53: 1400 | D53: 6900 | E53: 13237.56 | F53: 2406.7512 | G53: 122744.3112
A54: ROTO 73005 T/73204 T | B54: 114250 | C54: 1400 | D54: 6450 | E54: 13151.04 | F54: 2391.0208 | G54: 121942.0608
A55: ROTO 73005 TU | B55: 115750 | C55: 1400 | D55: 6450 | E55: 13336.44 | F55: 2424.7288 | G55: 123661.1688
A56: EC 72307 E | B56: 118450 | C56: 1400 | D56: 7450 | E56: 13546.56 | F56: 2462.9312 | G56: 125609.4912
A57: LLT - 12 | B57: 117950 | C57: 1400 | D57: 7450 | E57: =+(B57-C57-D57)*0.1236 -> 13484.76 | F57: 2451.6952 | G57: 125036.4552
A58: OG | B58: 108850 | C58: 0 | D58: 2450 | E58: 13151.04 | F58: 2391.0208 | G58: 121942.0608
A59: POST SALES QUANTITY DISCOUNT AS APPLICABLE
A60: QTY. MT FOR HD / LL | B60: >= 10 | C60: >=15 | D60: >=30 | E60: >=60 | F60: >= 100 | G60: >= 200 | H60: >= 400
A61: HDPE/LLDPE | B61: 300/- | C61: 300/- | D61: 400/- | E61: 450/- | F61: 550/- | G61: 650/- | H61: 750/-
A62: QTY. MT FOR PP | B62: >=15 | C62: >=30 | D62: >=60 | E62: >=100 | F62: >=200 | G62: >=400
A63: PP | B63: 300/- | C63: 400/- | D63: 450/- | E63: 550/- | F63: 650/- | G63: 750/-
A64: · FOR CREDIT PURCHASE INTREST FREE CREDIT WILL BE 14 DAYS FROM THE DATE OF INVOICE. AN EPI
A65: RS. 100 / MT PER DAY FOR EX-PLANT
A66: · Trade Discount of Rs. 4000 PMT applicable on R103 - to be adjusted pre-exice basis on Ex-plant sales only.
A67: · Trade Discount of Rs. 3000 PMT applicable on R5801 - to be adjusted pre-exice basis on Ex-plant sales only.
A68: · Trade Discount of Rs. 2000 PMT applicable on B5500 - to be adjusted pre-exice basis on Ex-plant sales only.
A69: · NON PRIME GRADE RS.800/MT LESS THAN THE BASIC PRIME GRADE.
A70: · CHEQUE RETURN PENALTY RS.1000/-PER INSTRUMENT.
A71: · UNLOADING & VARAI CHARGES TO BE BORNE BY THE CUSTOMER.
A72: · “C” FORM REQUIRED IN ADVANCE.
A73: · QUANTITY DISCOUNT WOULD NOT BE APPLICABLE ON COMBINATION OF HDPE AND LLDPE GRADES.
A74: · PRICE MAY CHANGE WITHOUT ANY PRIOR NOTICE. PRICE PREVAILING AT THE TIME OF DISPATCH WILL APPLY.
A75: REGARDS
A76: HITESH SHAH - 9820106078
A77: MUKESH SHAH - 9322238059

Sheet GUJARAT (S)
A1: GANPATI PETROCHEMICALS
A2: Consigment Stockist of : HALDIA PETROCHEMICALS LTD.
A3: 152,Sanjay Bldg. No. 6,Mittal Ind.Estate,Andheri Kurla Road,Marol,Andheri(East),MUMBAI-400 059.
A4: Tel. 28509801 / 28517451 / 32460637 Telefax. 28509802 / E- MAIL ganpetro@vsnl.com
A5: HDPE / PP / LLDPE PRICES EX-HALDIA PETROCHEMICALS LTD. PLANT FOR GUJARAT(SOUTH)
A6: Daman W.H. Add :- House no. DGGP / 10-B, Survey No. 747 & 748, Village Kalaria, Nani Daman, Daman - 396210, Tel:-0260-2240086, 9377319643
A7: HDPE, LLDPE & PP PRICE W.E.F. DT. 15.05.2014
A8: GRADE | B8: BASIC | C8: LESS. | D8: LESS. | E8: ADD | F8: ADD CST | G8: CASH AMT
A9: HDPE | C9: C.D. | D9: LOC.SUB | E9: 0.1236 | F9: 0.02 | G9: PMT
A10: M 6007L / M 5005L | B10: 110050 | C10: 1400 | D10: 7100 | E10: =+(B10-C10-D10)*0.1236 -> 12551.58 | F10: =+(B10-C10-D10+E10)*0.02 -> 2282.0316 | G10: =+B10-C10-D10+E10+F10 -> 116383.6116 | I10: TRANS.CHARGES PMT.
A11: M 6007LU | B11: 111550 | C11: 1400 | D11: 7100 | E11: =+(B11-C11-D11)*0.1236 -> 12736.98 | F11: =+(B11-C11-D11+E11)*0.02 -> 2315.7396 | G11: =+B11-C11-D11+E11+F11 -> 118102.7196
A12: M 5002L | B12: 109550 | C12: 1400 | D12: 7100 | E12: 12489.78 | F12: 2270.7956 | G12: 115810.5756
A13: HD BM B 6401 | B13: 111500 | C13: 1400 | D13: 7150 | E13: 12724.62 | F13: 2313.4924 | G13: 117988.1124 | H13: LOCATIONS | I13: FREIGHT | J13: ADD S.T.
A14: HD BM E 5201 | B14: 113000 | C14: 1400 | D14: 7150 | E14: 12910.02 | F14: 2347.2004 | G14: 119707.2204 | H14: **T.D. | I14: RS/MT. | J14: 0.0309
A15: HD BM E5201S | B15: 112000 | C15: 1400 | D15: 7150 | E15: 12786.42 | F15: 2324.7284 | G15: 118561.1484
A16: MBM B 5500 | B16: 116200 | C16: 1400 | D16: 7000 | E16: 13324.08 | F16: 2422.4816 | G16: 123546.5616
A17: HM FILM F 5600/5400 | B17: 113950 | C17: 1400 | D17: 6800 | E17: 13070.7 | F17: 2376.414 | G17: 121197.114 | H17: VAPI - 5 | I17: 3279 | J17: =+I17*0.0309 -> 101.3211
A18: RAF/MFIL R5801 | B18: 111350 | C18: 1400 | D18: 5850 | E18: 12866.76 | F18: 2339.3352 | G18: 119306.0952 | H18: SURAT - 5 | I18: 3127 | J18: =+I18*0.0309 -> 96.6243
A19: RAF/MFIL HD T9 | B19: 108350 | C19: 1400 | D19: 5850 | E19: 12495.96 | F19: 2271.9192 | G19: 115867.8792 | H19: UMERGAON - 5 | I19: 3229 | J19: =+I19*0.0309 -> 99.7761
A20: HD FILM HDT6 / F5001 | B20: 110850 | C20: 1400 | D20: 6750 | E20: 12693.72 | F20: 2307.8744 | G20: 117701.5944 | H20: VALSAD - 5 | I20: 3228 | J20: =+I20*0.0309 -> 99.7452
A21: PIPE P5200UV | B21: 116250 | C21: 1400 | D21: 6850 | E21: 13348.8 | F21: 2426.976 | G21: 123775.776
A22: IM M 5018L/M 5025L/M5818 | B22: 107900 | C22: 1400 | D22: 6650 | E22: 12341.46 | F22: 2243.8292 | G22: 114435.2892
A23: RAF HD T10 / HD T10S | B23: 110950 | C23: 1400 | D23: 6200 | E23: 12774.06 | F23: 2322.4812 | G23: 118446.5412
A24: PIPE P 5300 | B24: 118700 | C24: 1400 | D24: 7650 | E24: 13552.74 | F24: 2464.0548 | G24: 125666.7948
A25: PIPE P5200(P.E-63) | B25: 114750 | C25: 1400 | D25: 6850 | E25: 13163.4 | F25: 2393.268 | G25: 122056.668
A26: HD T9C | B26: 103850 | C26: 0 | D26: 2350 | E26: 12545.4 | F26: 2280.908 | G26: 116326.308
A27: OG | B27: 102850 | C27: 0 | D27: 2300 | E27: 12427.98 | F27: 2259.5596 | G27: 115237.5396
A28: PP
A29: FILM F 110 | B29: 110100 | C29: 1400 | D29: 5850 | E29: =+(B29-C29-D29)*0.1236 -> 12712.26 | F29: 2311.2452 | G29: =+B29-C29-D29+E29+F29 -> 117873.5052 | H29: *T.D.=TRANSIT DAYS
A30: HPIM M 103 | B30: 108900 | C30: 1400 | D30: 7050 | E30: 12415.62 | F30: 2257.3124 | G30: 115122.9324
A31: HPIM M 110 | B31: 106550 | C31: 1400 | D31: 6450 | E31: 12199.32 | F31: 2217.9864 | G31: 113117.3064
A32: TF T 103 / T 105N | B32: 109650 | C32: 1400 | D32: 5100 | E32: 12749.34 | F32: 2317.9868 | G32: 118217.3268
A33: RAFFIA R 103 | B33: 113450 | C33: 1400 | D33: 7050 | E33: 12978 | F33: 2359.56 | G33: 120337.56
A34: BOPP F 103 / F 103S | B34: 111350 | C34: 1400 | D34: 5300 | E34: 12934.74 | F34: 2351.6948 | G34: 119936.4348
A35: PP M 108/ M106 | B35: 106450 | C35: 1400 | D35: 6850 | E35: 12137.52 | F35: 2206.7504 | G35: 112544.2704
A36: PP F135 / E125 | B36: 109450 | C36: 1400 | D36: 5450 | E36: 12681.36 | F36: 2305.6272 | G36: 117586.9872
A37: PP OG | B37: 101550 | C37: 0 | D37: 0 | E37: 12551.58 | F37: 2282.0316 | G37: 116383.6116
A38: PP PS | B38: 97550 | C38: 0 | D38: 0 | E38: 12057.18 | F38: 2192.1436 | G38: 111799.3236
A39: PP WS | B39: 95550 | C39: 0 | D39: 0 | E39: 11809.98 | F39: 2147.1996 | G39: 109507.1796
A40: PP CP/RCP | E40: =(B40-C40-D40)*16% -> 0 | G40: =(B40-C40-D40)*16%+(B40-C40-D40) -> 0
A41: PPCP M 311T | B41: 114400 | C41: 1400 | D41: 6000 | E41: =+(B41-C41-D41)*0.1236 -> 13225.2 | F41: 2404.504 | G41: =+B41-C41-D41+E41+F41 -> 122629.704
A42: PPCP M 340 / M365 | B42: 112100 | C42: 1400 | D42: 5700 | E42: 12978 | F42: 2359.56 | G42: 120337.56
A43: PP CP M 310 | B43: 112800 | C43: 1400 | D43: 6000 | E43: 13027.44 | F43: 2368.5488 | G43: 120795.9888
A44: PP CP M 312 | B44: 110900 | C44: 1400 | D44: 6050 | E44: 12786.42 | F44: 2324.7284 | G44: 118561.1484
A45: PP CP M 304 / M 325 | B45: 110850 | C45: 1400 | D45: 6300 | E45: 12749.34 | F45: 2317.9868 | G45: 118217.3268
A46: PP CP M 307 / M 315 | B46: 110350 | C46: 1400 | D46: 5850 | E46: 12743.16 | F46: 2316.8632 | G46: 118160.0232
A47: PP RCP B 200 | B47: 111200 | C47: 1400 | D47: 6000 | E47: 12829.68 | F47: 2332.5936 | G47: 118962.2736
A48: PP RCP B202S | B48: 115200 | C48: 1400 | D48: 4850 | E48: 13466.22 | F48: 2448.3244 | G48: 124864.5444
A49: PP RCP M212S | B49: 113400 | C49: 1400 | D49: 5850 | E49: 13120.14 | F49: 2385.4028 | G49: 121655.5428
A50: LLDPE
A51: FILM 71601D | B51: 115950 | C51: 1400 | D51: 6750 | E51: =+(B51-C51-D51)*0.1236 -> 13324.08 | F51: 2422.4816 | G51: =+B51-C51-D51+E51+F51 -> 123546.5616
A52: FILM 71501S,71601W | B52: 115400 | C52: 1400 | D52: 7200 | E52: 13200.48 | F52: 2400.0096 | G52: 122400.4896
A53: FILM 71602 S / W | B53: 115400 | C53: 1400 | D53: 7200 | E53: 13200.48 | F53: 2400.0096 | G53: 122400.4896
A54: ROTO 73005 T/73204 T | B54: 114250 | C54: 1400 | D54: 6750 | E54: 13113.96 | F54: 2384.2792 | G54: 121598.2392
A55: ROTO 73005 TU | B55: 115750 | C55: 1400 | D55: 6750 | E55: 13299.36 | F55: 2417.9872 | G55: 123317.3472
A56: EC 72307 E | B56: 118450 | C56: 1400 | D56: 7750 | E56: 13509.48 | F56: 2456.1896 | G56: 125265.6696
A57: LLT - 12 | B57: 117950 | C57: 1400 | D57: 7750 | E57: =+(B57-C57-D57)*0.1236 -> 13447.68 | F57: 2444.9536 | G57: 124692.6336
A58: OG | B58: 108850 | C58: 0 | D58: 2450 | E58: 13151.04 | F58: 2391.0208 | G58: 121942.0608
A59: POST SALES QUANTITY DISCOUNT AS APPLICABLE
A60: QTY. MT FOR HD / LL | B60: >= 10 | C60: >=15 | D60: >=30 | E60: >=60 | F60: >= 100 | G60: >= 200 | H60: >= 400
A61: HDPE/LLDPE | B61: 300/- | C61: 300/- | D61: 400/- | E61: 450/- | F61: 550/- | G61: 650/- | H61: 750/-
A62: QTY. MT FOR PP | B62: >=15 | C62: >=30 | D62: >=60 | E62: >=100 | F62: >=200 | G62: >=400
A63: PP | B63: 300/- | C63: 400/- | D63: 450/- | E63: 550/- | F63: 650/- | G63: 750/-
A64: · FOR CREDIT PURCHASE INTREST FREE CREDIT WILL BE 14 DAYS FROM THE DATE OF INVOICE. AN EPI
A65: RS. 100 / MT PER DAY FOR EX-PLANT
A66: · Trade Discount of Rs. 4000 PMT applicable on R103 - to be adjusted pre-exice basis on Ex-plant sales only.
A67: · Trade Discount of Rs. 3000 PMT applicable on R5801 - to be adjusted pre-exice basis on Ex-plant sales only.
A68: · Trade Discount of Rs. 2000 PMT applicable on B5500 - to be adjusted pre-exice basis on Ex-plant sales only.
A69: · NON PRIME GRADE RS.800/MT LESS THAN THE BASIC PRIME GRADE.
A70: · CHEQUE RETURN PENALTY RS.1000/-PER INSTRUMENT.
A71: · UNLOADING & VARAI CHARGES TO BE BORNE BY THE CUSTOMER.
A72: · “C” FORM REQUIRED IN ADVANCE.
A73: · QUANTITY DISCOUNT WOULD NOT BE APPLICABLE ON COMBINATION OF HDPE AND LLDPE GRADES.
A74: · PRICE MAY CHANGE WITHOUT ANY PRIOR NOTICE. PRICE PREVAILING AT THE TIME OF DISPATCH WILL APPLY.
A75: REGARDS
A76: HITESH SHAH - 9820106078
A77: MUKESH SHAH - 9322238059

Sheet GUJARAT (W)
A1: GANPATI PETROCHEMICALS
A2: Consigment Stockist of : HALDIA PETROCHEMICALS LTD.
A3: 152,Sanjay Bldg. No. 6,Mittal Ind.Estate,Andheri Kurla Road,Marol,Andheri(East),MUMBAI-400 059.
A4: Tel. 28509801 / 28517451 / 32460637 Telefax. 28509802 / E- MAIL ganpetro@vsnl.com
A5: HDPE / PP / LLDPE PRICES EX-HALDIA PETROCHEMICALS LTD. PLANT FOR GUJARAT(WEST)
A6: Daman W.H. Add :- House no. DGGP / 10-B, Survey No. 747 & 748, Village Kalaria, Nani Daman, Daman - 396210, Tel:-0260-2240086, 9377319643
A7: HDPE, LLDPE & PP PRICE W.E.F. DT. 15.05.2014
A8: GRADE | B8: BASIC | C8: LESS. | D8: LESS. | E8: ADD | F8: ADD CST | G8: CASH AMT
A9: HDPE | C9: C.D. | D9: LOC.SUB | E9: 0.1236 | F9: 0.02 | G9: PMT
A10: M 6007L / M 5005L | B10: 110050 | C10: 1400 | D10: 6650 | E10: =+(B10-C10-D10)*0.1236 -> 12607.2 | F10: =+(B10-C10-D10+E10)*0.02 -> 2292.144 | G10: =+B10-C10-D10+E10+F10 -> 116899.344 | I10: TRANS.CHARGES PMT.
A11: M 6007LU | B11: 111550 | C11: 1400 | D11: 6650 | E11: =+(B11-C11-D11)*0.1236 -> 12792.6 | F11: =+(B11-C11-D11+E11)*0.02 -> 2325.852 | G11: =+B11-C11-D11+E11+F11 -> 118618.452
A12: M 5002L | B12: 109550 | C12: 1400 | D12: 6650 | E12: 12545.4 | F12: 2280.908 | G12: 116326.308
A13: HD BM B 6401 | B13: 111500 | C13: 1400 | D13: 6450 | E13: 12811.14 | F13: 2329.2228 | G13: 118790.3628 | H13: LOCATIONS | I13: FREIGHT | J13: ADD S.T.
A14: HD BM E 5201 | B14: 113000 | C14: 1400 | D14: 6450 | E14: 12996.54 | F14: 2362.9308 | G14: 120509.4708 | H14: **T.D. | I14: RS/MT. | J14: 0.0309
A15: HD BM E5201S | B15: 112000 | C15: 1400 | D15: 6450 | E15: 12872.94 | F15: 2340.4588 | G15: 119363.3988
A16: MBM B 5500 | B16: 116200 | C16: 1400 | D16: 6350 | E16: 13404.42 | F16: 2437.0884 | G16: 124291.5084
A17: HM FILM F 5600/5400 | B17: 113950 | C17: 1400 | D17: 6350 | E17: 13126.32 | F17: 2386.5264 | G17: 121712.8464 | H17: RAJKOT - 6 | I17: 3685 | J17: =+I17*0.0309 -> 113.8665
A18: RAF/MFIL R5801 | B18: 111350 | C18: 1400 | D18: 5450 | E18: 12916.2 | F18: 2348.324 | G18: 119764.524 | H18: BHAVNAGAR-6 | I18: 3735 | J18: =+I18*0.0309 -> 115.4115
A19: RAF/MFIL HD T9 | B19: 108350 | C19: 1400 | D19: 5450 | E19: 12545.4 | F19: 2280.908 | G19: 116326.308
A20: HD FILM HDT6 / F5001 | B20: 110850 | C20: 1400 | D20: 5900 | E20: 12798.78 | F20: 2326.9756 | G20: 118675.7556
A21: PIPE P5200UV | B21: 116250 | C21: 1400 | D21: 6400 | E21: 13404.42 | F21: 2437.0884 | G21: 124291.5084
A22: IM M 5018L/M 5025L/M5818 | B22: 107900 | C22: 1400 | D22: 6150 | E22: 12403.26 | F22: 2255.0652 | G22: 115008.3252
A23: RAF HD T10 / HD T10S | B23: 110950 | C23: 1400 | D23: 5700 | E23: 12835.86 | F23: 2333.7172 | G23: 119019.5772
A24: PIPE P 5300 | B24: 118700 | C24: 1400 | D24: 7000 | E24: 13633.08 | F24: 2478.6616 | G24: 126411.7416
A25: PIPE P5200(P.E-63) | B25: 114750 | C25: 1400 | D25: 6400 | E25: 13219.02 | F25: 2403.3804 | G25: 122572.4004
A26: HD T9C | B26: 103850 | C26: 0 | D26: 2350 | E26: 12545.4 | F26: 2280.908 | G26: 116326.308
A27: OG | B27: 102850 | C27: 0 | D27: 2300 | E27: 12427.98 | F27: 2259.5596 | G27: 115237.5396
A28: PP
A29: FILM F 110 | B29: 110100 | C29: 1400 | D29: 6900 | E29: =+(B29-C29-D29)*0.1236 -> 12582.48 | F29: =+(B29-C29-D29+E29)*0.02 -> 2287.6496 | G29: =+B29-C29-D29+E29+F29 -> 116670.1296 | H29: *T.D.=TRANSIT DAYS
A30: HPIM M 103 | B30: 108900 | C30: 1400 | D30: 7600 | E30: 12347.64 | F30: 2244.9528 | G30: 114492.5928
A31: HPIM M 110 | B31: 106550 | C31: 1400 | D31: 6550 | E31: 12186.96 | F31: 2215.7392 | G31: 113002.6992
A32: TF T 103 / T 105N | B32: 109650 | C32: 1400 | D32: 6450 | E32: 12582.48 | F32: 2287.6496 | G32: 116670.1296
A33: RAFFIA R 103 | B33: 113450 | C33: 1400 | D33: 7600 | E33: 12910.02 | F33: 2347.2004 | G33: 119707.2204
A34: BOPP F 103 / F 103S | B34: 111350 | C34: 1400 | D34: 6700 | E34: 12761.7 | F34: 2320.234 | G34: 118331.934
A35: PP M 108/ M106 | B35: 106450 | C35: 1400 | D35: 6950 | E35: 12125.16 | F35: 2204.5032 | G35: 112429.6632
A36: PP F135 / E125 | B36: 109450 | C36: 1400 | D36: 6400 | E36: 12563.94 | F36: 2284.2788 | G36: 116498.2188
A37: PP OG | B37: 101550 | C37: 0 | D37: 0 | E37: 12551.58 | F37: 2282.0316 | G37: 116383.6116
A38: PP PS | B38: 97550 | C38: 0 | D38: 0 | E38: 12057.18 | F38: 2192.1436 | G38: 111799.3236
A39: PP WS | B39: 95550 | C39: 0 | D39: 0 | E39: 11809.98 | F39: 2147.1996 | G39: 109507.1796
A40: PP CP/RCP | E40: =(B40-C40-D40)*16% -> 0 | G40: =(B40-C40-D40)*16%+(B40-C40-D40) -> 0
A41: PPCP M 311T | B41: 114400 | C41: 1400 | D41: 6900 | E41: =+(B41-C41-D41)*0.1236 -> 13113.96 | F41: =+(B41-C41-D41+E41)*0.02 -> 2384.2792 | G41: =+B41-C41-D41+E41+F41 -> 121598.2392
A42: PPCP M 340 / M365 | B42: 112100 | C42: 1400 | D42: 6700 | E42: 12854.4 | F42: 2337.088 | G42: 119191.488
A43: PP CP M 310 | B43: 112800 | C43: 1400 | D43: 6900 | E43: 12916.2 | F43: 2348.324 | G43: 119764.524
A44: PP CP M 312 | B44: 110900 | C44: 1400 | D44: 6750 | E44: 12699.9 | F44: 2308.998 | G44: 117758.898
A45: PP CP M 304 / M 325 | B45: 110850 | C45: 1400 | D45: 7000 | E45: 12662.82 | F45: 2302.2564 | G45: 117415.0764
A46: PP CP M 307 / M 315 | B46: 110350 | C46: 1400 | D46: 7000 | E46: 12601.02 | F46: 2291.0204 | G46: 116842.0404
A47: PP RCP B 200 | B47: 111200 | C47: 1400 | D47: 7200 | E47: 12681.36 | F47: 2305.6272 | G47: 117586.9872
A48: PP RCP B202S | B48: 115200 | C48: 1400 | D48: 4700 | E48: 13484.76 | F48: 2451.6952 | G48: 125036.4552
A49: PP RCP M212S | B49: 113400 | C49: 1400 | D49: 5700 | E49: 13138.68 | F49: 2388.7736 | G49: 121827.4536
A50: LLDPE
A51: FILM 71601D | B51: 115950 | C51: 1400 | D51: 6350 | E51: =+(B51-C51-D51)*0.1236 -> 13373.52 | F51: =+(B51-C51-D51+E51)*0.02 -> 2431.4704 | G51: =+B51-C51-D51+E51+F51 -> 124004.9904
A52: FILM 71501S,71601W | B52: 115400 | C52: 1400 | D52: 6800 | E52: 13249.92 | F52: 2408.9984 | G52: 122858.9184
A53: FILM 71602 S / W | B53: 115400 | C53: 1400 | D53: 6800 | E53: 13249.92 | F53: 2408.9984 | G53: 122858.9184
A54: ROTO 73005 T/73204 T | B54: 114250 | C54: 1400 | D54: 6300 | E54: 13169.58 | F54: 2394.3916 | G54: 122113.9716
A55: ROTO 73005 TU | B55: 115750 | C55: 1400 | D55: 6300 | E55: 13354.98 | F55: 2428.0996 | G55: 123833.0796
A56: EC 72307 E | B56: 118450 | C56: 1400 | D56: 7250 | E56: 13571.28 | F56: 2467.4256 | G56: 125838.7056
A57: LLT - 12 | B57: 117950 | C57: 1400 | D57: 7250 | E57: =+(B57-C57-D57)*0.1236 -> 13509.48 | F57: 2456.1896 | G57: 125265.6696
A58: OG | B58: 108850 | C58: 0 | D58: 2450 | E58: 13151.04 | F58: 2391.0208 | G58: 121942.0608
A59: POST SALES QUANTITY DISCOUNT AS APPLICABLE
A60: QTY. MT FOR HD / LL | B60: >= 10 | C60: >=15 | D60: >=30 | E60: >=60 | F60: >= 100 | G60: >= 200 | H60: >= 400
A61: HDPE/LLDPE | B61: 300/- | C61: 300/- | D61: 400/- | E61: 450/- | F61: 550/- | G61: 650/- | H61: 750/-
A62: QTY. MT FOR PP | B62: >=15 | C62: >=30 | D62: >=60 | E62: >=100 | F62: >=200 | G62: >=400
A63: PP | B63: 300/- | C63: 400/- | D63: 450/- | E63: 550/- | F63: 650/- | G63: 750/-
A64: · FOR CREDIT PURCHASE INTREST FREE CREDIT WILL BE 14 DAYS FROM THE DATE OF INVOICE. AN EPI
A65: RS. 100 / MT PER DAY FOR EX-PLANT
A66: · Trade Discount of Rs. 4000 PMT applicable on R103 - to be adjusted pre-exice basis on Ex-plant sales only.
A67: · Trade Discount of Rs. 3000 PMT applicable on R5801 - to be adjusted pre-exice basis on Ex-plant sales only.
A68: · Trade Discount of Rs. 2000 PMT applicable on B5500 - to be adjusted pre-exice basis on Ex-plant sales only.
A69: · NON PRIME GRADE RS.800/MT LESS THAN THE BASIC PRIME GRADE.
A70: · CHEQUE RETURN PENALTY RS.1000/-PER INSTRUMENT.
A71: · UNLOADING & VARAI CHARGES TO BE BORNE BY THE CUSTOMER.
A72: · “C” FORM REQUIRED IN ADVANCE.
A73: · QUANTITY DISCOUNT WOULD NOT BE APPLICABLE ON COMBINATION OF HDPE AND LLDPE GRADES.
A74: · PRICE MAY CHANGE WITHOUT ANY PRIOR NOTICE. PRICE PREVAILING AT THE TIME OF DISPATCH WILL APPLY.
A75: REGARDS
A76: HITESH SHAH - 9820106078
A77: MUKESH SHAH - 9322238059

Sheet BHIWANDI
A1: GANPATI PETROCHEMICALS
A2: Consigment Stockist of : HALDIA PETROCHEMICALS LTD.
A3: 152,Sanjay Bldg. No. 6,Mittal Ind.Estate,Andheri Kurla Road,Marol,Andheri(East),MUMBAI-400 059.
A4: Tel. 28509801 / 28517451 / 32460637 Telefax. 28509802 / E- MAIL ganpetro@vsnl.com
A5: HDPE / PP / LLDPE PRICES EX-HALDIA PETROCHEMICALS LTD. PLANT FOR BHIWANDI
A6: Bhivandi W.H. Add :- Godown No. 20,Thakkar Compound,Valgaon,Anjur Rd,Bhivandi,Dist. Thane. TEL:- 09324038864
A7: HDPE, LLDPE & PP PRICE W.E.F. DT. 15.05.2014
A8: GRADE | B8: BASIC | C8: LESS. | D8: LESS. | E8: ADD E.D | F8: ADD CST | G8: ADD | H8: ADD S.T. | I8: CASH AMT
A9: HDPE | C9: C.D. | D9: LOC.SUB | E9: 0.1236 | F9: 0.02 | G9: TRANSP | H9: 0.0309 | I9: PMT
A10: M 6007L / M 5005L | B10: 110050 | C10: 1400 | D10: 7850 | E10: =+(B10-C10-D10)*0.1236 -> 12458.88 | F10: =+(B10-C10-D10+E10)*0.02 -> 2265.1776 | G10: 3258 | H10: =+G10*0.0309 -> 100.6722 | I10: =+B10-C10-D10+E10+F10+G10+H10 -> 118882.7298
A11: M 6007LU | B11: 111550 | C11: 1400 | D11: 7850 | E11: =+(B11-C11-D11)*0.1236 -> 12644.28 | F11: 2298.8856 | G11: 3258 | H11: 100.6722 | I11: =+B11-C11-D11+E11+F11+G11+H11 -> 120601.8378
A12: M 5002L | B12: 109550 | C12: 1400 | D12: 7850 | E12: 12397.08 | F12: 2253.9416 | G12: 3258 | H12: 100.6722 | I12: =+B12-C12-D12+E12+F12+G12+H12 -> 118309.6938
A13: HD BM B 6401 | B13: 111500 | C13: 1400 | D13: 7850 | E13: 12638.1 | F13: 2297.762 | G13: 3258 | H13: 100.6722 | I13: 120544.5342
A14: HD BM E 5201 | B14: 113000 | C14: 1400 | D14: 7850 | E14: 12823.5 | F14: 2331.47 | G14: 3258 | H14: 100.6722 | I14: 122263.6422
A15: HD BM E5201S | B15: 112000 | C15: 1400 | D15: 7850 | E15: 12699.9 | F15: 2308.998 | G15: 3258 | H15: 100.6722 | I15: 121117.5702
A16: MBM B 5500 | B16: 116200 | C16: 1400 | D16: 7600 | E16: 13249.92 | F16: 2408.9984 | G16: 3258 | H16: 100.6722 | I16: 126217.5906
A17: HM FILM F 5600/5400 | B17: 113950 | C17: 1400 | D17: 7000 | E17: 13045.98 | F17: 2371.9196 | G17: 3258 | H17: 100.6722 | I17: 124326.5718
A18: RAF/MFIL R5801 | B18: 111350 | C18: 1400 | D18: 6650 | E18: 12767.88 | F18: 2321.3576 | G18: 3258 | H18: 100.6722 | I18: 121747.9098
A19: RAF/MFIL HD T9 | B19: 108350 | C19: 1400 | D19: 6650 | E19: 12397.08 | F19: 2253.9416 | G19: 3258 | H19: 100.6722 | I19: 118309.6938
A20: HD FILM HDT6 / F5001 | B20: 110850 | C20: 1400 | D20: 7150 | E20: 12644.28 | F20: 2298.8856 | G20: 3258 | H20: 100.6722 | I20: 120601.8378
A21: PIPE P5200UV | B21: 116250 | C21: 1400 | D21: 7600 | E21: 13256.1 | F21: 2410.122 | G21: 3258 | H21: 100.6722 | I21: 126274.8942
A22: IM M 5018L/M 5025L/M5818 | B22: 107900 | C22: 1400 | D22: 7550 | E22: 12230.22 | F22: 2223.6044 | G22: 3258 | H22: 100.6722 | I22: 116762.4966
A23: RAF HD T10 / HD T10S | B23: 110950 | C23: 1400 | D23: 7100 | E23: 12662.82 | F23: 2302.2564 | G23: 3258 | H23: 100.6722 | I23: 120773.7486
A24: PIPE P 5300 | B24: 118700 | C24: 1400 | D24: 8250 | E24: 13478.58 | F24: 2450.5716 | G24: 3258 | H24: 100.6722 | I24: 128337.8238
A25: PIPE P5200(P.E-63) | B25: 114750 | C25: 1400 | D25: 7600 | E25: 13070.7 | F25: 2376.414 | G25: 3258 | H25: 100.6722 | I25: 124555.7862
A26: HD T9C | B26: 103850 | C26: 0 | D26: 2350 | E26: 12545.4 | F26: 2280.908 | G26: 3258 | H26: 100.6722 | I26: 119684.9802
A27: OG | B27: 102850 | C27: 0 | D27: 2300 | E27: 12427.98 | F27: 2259.5596 | G27: 3258 | H27: 100.6722 | I27: 118596.2118
A28: PP
A29: FILM F 110 | B29: 110100 | C29: 1400 | D29: 6650 | E29: =+(B29-C29-D29)*0.1236 -> 12613.38 | F29: =+(B29-C29-D29+E29)*0.02 -> 2293.2676 | G29: 3258 | H29: =+G29*0.0309 -> 100.6722 | I29: =+B29-C29-D29+E29+F29+G29+H29 -> 120315.3198
A30: HPIM M 103 | B30: 108900 | C30: 1400 | D30: 7450 | E30: 12366.18 | F30: 2248.3236 | G30: 3258 | H30: 100.6722 | I30: 118023.1758
A31: HPIM M 110 | B31: 106550 | C31: 1400 | D31: 6800 | E31: 12156.06 | F31: 2210.1212 | G31: 3258 | H31: 100.6722 | I31: 116074.8534
A32: TF T 103 / T 105N | B32: 109650 | C32: 1400 | D32: 6600 | E32: 12563.94 | F32: 2284.2788 | G32: 3258 | H32: 100.6722 | I32: 119856.891
A33: RAFFIA R 103 | B33: 113450 | C33: 1400 | D33: 7450 | E33: 12928.56 | F33: 2350.5712 | G33: 3258 | H33: 100.6722 | I33: 123237.8034
A34: BOPP F 103 / F 103S | B34: 111350 | C34: 1400 | D34: 6900 | E34: 12736.98 | F34: 2315.7396 | G34: 3258 | H34: 100.6722 | I34: 121461.3918
A35: PP M 108/ M106 | B35: 106450 | C35: 1400 | D35: 7200 | E35: 12094.26 | F35: 2198.8852 | G35: 3258 | H35: 100.6722 | I35: 115501.8174
A36: PP F135 / E125 | B36: 109450 | C36: 1400 | D36: 6900 | E36: 12502.14 | F36: 2273.0428 | G36: 3258 | H36: 100.6722 | I36: 119283.855
A37: PP OG | B37: 101550 | C37: 0 | D37: 0 | E37: 12551.58 | F37: 2282.0316 | G37: 3258 | H37: 100.6722 | I37: 119742.2838
A38: PP PS | B38: 97550 | C38: 0 | D38: 0 | E38: 12057.18 | F38: 2192.1436 | G38: 3258 | H38: 100.6722 | I38: 115157.9958
A39: PP WS | B39: 95550 | C39: 0 | D39: 0 | E39: 11809.98 | F39: 2147.1996 | G39: 3258 | H39: 100.6722 | I39: 112865.8518
A40: PP CP/RCP
A41: PPCP M 311T | B41: 114400 | C41: 1400 | D41: 7750 | E41: =+(B41-C41-D41)*0.1236 -> 13008.9 | F41: =+(B41-C41-D41+E41)*0.02 -> 2365.178 | G41: 3258 | H41: =+G41*0.0309 -> 100.6722 | I41: =+B41-C41-D41+E41+F41+G41+H41 -> 123982.7502
A42: PPCP M 340 / M365 | B42: 112100 | C42: 1400 | D42: 7400 | E42: 12767.88 | F42: 2321.3576 | G42: 3258 | H42: 100.6722 | I42: 121747.9098
A43: PP CP M 310 | B43: 112800 | C43: 1400 | D43: 7300 | E43: 12866.76 | F43: 2339.3352 | G43: 3258 | H43: 100.6722 | I43: 122664.7674
A44: PP CP M 312 | B44: 110900 | C44: 1400 | D44: 7550 | E44: 12601.02 | F44: 2291.0204 | G44: 3258 | H44: 100.6722 | I44: 120200.7126
A45: PP CP M 304 / M 325 | B45: 110850 | C45: 1400 | D45: 7500 | E45: 12601.02 | F45: 2291.0204 | G45: 3258 | H45: 100.6722 | I45: 120200.7126
A46: PP CP M 307 / M 315 | B46: 110350 | C46: 1400 | D46: 7500 | E46: 12539.22 | F46: 2279.7844 | G46: 3258 | H46: 100.6722 | I46: 119627.6766
A47: PP RCP B 200 | B47: 111200 | C47: 1400 | D47: 7400 | E47: 12656.64 | F47: 2301.1328 | G47: 3258 | H47: 100.6722 | I47: 120716.445
A48: PP RCP B202S | B48: 115200 | C48: 1400 | D48: 6100 | E48: 13311.72 | F48: 2420.2344 | G48: 3258 | H48: 100.6722 | I48: 126790.6266
A49: PP RCP M212S | B49: 113400 | C49: 1400 | D49: 7500 | E49: 12916.2 | F49: 2348.324 | G49: 3258 | H49: 100.6722 | I49: 123123.1962
A50: LLDPE
A51: FILM 71601D | B51: 115950 | C51: 1400 | D51: 7700 | E51: =+(B51-C51-D51)*0.1236 -> 13206.66 | F51: =+(B51-C51-D51+E51)*0.02 -> 2401.1332 | G51: 3258 | H51: =+G51*0.0309 -> 100.6722 | I51: =+B51-C51-D51+E51+F51+G51+H51 -> 125816.4654
A52: FILM 71501S,71601W | B52: 115400 | C52: 1400 | D52: 8150 | E52: 13083.06 | F52: 2378.6612 | G52: 3258 | H52: 100.6722 | I52: 124670.3934
A53: FILM 71602 S / W | B53: 115400 | C53: 1400 | D53: 8150 | E53: 13083.06 | F53: 2378.6612 | G53: 3258 | H53: 100.6722 | I53: 124670.3934
A54: ROTO 73005 T/73204 T | B54: 114250 | C54: 1400 | D54: 7450 | E54: 13027.44 | F54: 2368.5488 | G54: 3258 | H54: 100.6722 | I54: 124154.661
A55: ROTO 73005 TU | B55: 115750 | C55: 1400 | D55: 7450 | E55: 13212.84 | F55: 2402.2568 | G55: 3258 | H55: 100.6722 | I55: 125873.769
A56: EC 72307 E | B56: 118450 | C56: 1400 | D56: 8450 | E56: 13422.96 | F56: 2440.4592 | G56: 3258 | H56: 100.6722 | I56: 127822.0914
A57: LLT - 12 | B57: 117950 | C57: 1400 | D57: 8450 | E57: =+(B57-C57-D57)*0.1236 -> 13361.16 | F57: 2429.2232 | G57: 3258 | H57: =+G57*0.0309 -> 100.6722 | I57: 127249.0554
A58: OG | B58: 108850 | C58: 0 | D58: 2450 | E58: 13151.04 | F58: 2391.0208 | G58: 3258 | H58: 100.6722 | I58: 125300.733
A59: POST SALES QUANTITY DISCOUNT AS APPLICABLE
A60: QTY. MT FOR HD / LL | B60: >= 10 | C60: >=15 | D60: >=30 | E60: >=60 | F60: >= 100 | G60: >= 200 | H60: >= 400
A61: HDPE/LLDPE | B61: 300/- | C61: 300/- | D61: 400/- | E61: 450/- | F61: 550/- | G61: 650/- | H61: 750/-
A62: QTY. MT FOR PP | B62: >=15 | C62: >=30 | D62: >=60 | E62: >=100 | F62: >=200 | G62: >=400
A63: PP | B63: 300/- | C63: 400/- | D63: 450/- | E63: 550/- | F63: 650/- | G63: 750/-
A64: · FOR CREDIT PURCHASE INTREST FREE CREDIT WILL BE 14 DAYS FROM THE DATE OF INVOICE. AN EPI
A65: RS. 100 / MT PER DAY FOR EX-PLANT
A66: · Trade Discount of Rs. 4000 PMT applicable on R103 - to be adjusted pre-exice basis on Ex-plant sales only.
A67: · Trade Discount of Rs. 3000 PMT applicable on R5801 - to be adjusted pre-exice basis on Ex-plant sales only.
A68: · Trade Discount of Rs. 2000 PMT applicable on B5500 - to be adjusted pre-exice basis on Ex-plant sales only.
A69: · NON PRIME GRADE RS.800/MT LESS THAN THE BASIC PRIME GRADE.
A70: · CHEQUE RETURN PENALTY RS.1000/-PER INSTRUMENT.
A71: · UNLOADING & VARAI CHARGES TO BE BORNE BY THE CUSTOMER.
A72: · “C” FORM REQUIRED IN ADVANCE.
A73: · QUANTITY DISCOUNT WOULD NOT BE APPLICABLE ON COMBINATION OF HDPE AND LLDPE GRADES.
A74: · PRICE MAY CHANGE WITHOUT ANY PRIOR NOTICE. PRICE PREVAILING AT THE TIME OF DISPATCH WILL APPLY.
A75: REGARDS
A76: HITESH SHAH - 9820106078
A77: MUKESH SHAH - 9322238059

Sheet MAHA(O.V.)
A1: GANPATI PETROCHEMICALS
A2: Consigment Stockist of : HALDIA PETROCHEMICALS LTD.
A3: 152,Sanjay Bldg. No. 6,Mittal Ind.Estate,Andheri Kurla Road,Marol,Andheri(East),MUMBAI-400 059.
A4: Tel. 28509801 / 28517451 / 32460637 Telefax. 28509802 / E- MAIL ganpetro@vsnl.com
A5: HDPE / PP / LLDPE PRICES EX-HALDIA PETROCHEMICALS LTD. PLANT FOR MAHARATRA(O.V.)
A6: Bhivandi W.H. Add :- Godown No. 20,Thakkar Compound,Valgaon,Anjur Rd,Bhivandi,Dist. Thane. TEL:- 09324038864
A7: HDPE, LLDPE & PP PRICE W.E.F. DT. 15.05.2014
A8: GRADE | B8: BASIC | C8: LESS. | D8: LESS. | E8: ADD | F8: ADD CST | G8: CASH AMT
A9: HDPE | C9: C.D. | D9: LOC.SUB | E9: 0.1236 | F9: 0.02 | G9: PMT
A10: M 6007L / M 5005L | B10: 110050 | C10: 1400 | D10: 7850 | E10: =+(B10-C10-D10)*0.1236 -> 12458.88 | F10: =+(B10-C10-D10+E10)*0.02 -> 2265.1776 | G10: =+B10-C10-D10+E10+F10 -> 115524.0576 | I10: TRANS.CHARGES PMT.
A11: M 6007LU | B11: 111550 | C11: 1400 | D11: 7850 | E11: =+(B11-C11-D11)*0.1236 -> 12644.28 | F11: =+(B11-C11-D11+E11)*0.02 -> 2298.8856 | G11: =+B11-C11-D11+E11+F11 -> 117243.1656
A12: M 5002L | B12: 109550 | C12: 1400 | D12: 7850 | E12: 12397.08 | F12: 2253.9416 | G12: 114951.0216
A13: HD BM B 6401 | B13: 111500 | C13: 1400 | D13: 7850 | E13: 12638.1 | F13: 2297.762 | G13: 117185.862 | H13: LOCATIONS | I13: FREIGHT | J13: ADD S.T.
A14: HD BM E 5201 | B14: 113000 | C14: 1400 | D14: 7850 | E14: 12823.5 | F14: 2331.47 | G14: 118904.97 | H14: **T.D. | I14: RS/MT. | J14: 0.0309
A15: HD BM E5201S | B15: 112000 | C15: 1400 | D15: 7850 | E15: 12699.9 | F15: 2308.998 | G15: 117758.898
A16: MBM B 5500 | B16: 116200 | C16: 1400 | D16: 7600 | E16: 13249.92 | F16: 2408.9984 | G16: 122858.9184
A17: HM FILM F 5600/5400 | B17: 113950 | C17: 1400 | D17: 7000 | E17: 13045.98 | F17: 2371.9196 | G17: 120967.8996 | H17: AHMEDNAGAR-5 | I17: 3174 | J17: =+I17*0.0309 -> 98.0766
A18: RAF/MFIL R5801 | B18: 111350 | C18: 1400 | D18: 6650 | E18: 12767.88 | F18: 2321.3576 | G18: 118389.2376
A19: RAF/MFIL HD T9 | B19: 108350 | C19: 1400 | D19: 6650 | E19: 12397.08 | F19: 2253.9416 | G19: 114951.0216 | H19: THANE - 5 | I19: 3338 | J19: =+I19*0.0309 -> 103.1442
A20: HD FILM HDT6 / F5001 | B20: 110850 | C20: 1400 | D20: 7150 | E20: 12644.28 | F20: 2298.8856 | G20: 117243.1656 | H20: ALIBAUGH - 5 | I20: 3755 | J20: =+I20*0.0309 -> 116.0295
A21: PIPE P5200UV | B21: 116250 | C21: 1400 | D21: 7600 | E21: 13256.1 | F21: 2410.122 | G21: 122916.222
A22: IM M 5018L/M 5025L/M5818 | B22: 107900 | C22: 1400 | D22: 7550 | E22: 12230.22 | F22: 2223.6044 | G22: 113403.8244 | H22: GRT.MUMBAI -5 | I22: 3458 | J22: =+I22*0.0309 -> 106.8522
A23: RAF HD T10 / HD T10S | B23: 110950 | C23: 1400 | D23: 7100 | E23: 12662.82 | F23: 2302.2564 | G23: 117415.0764 | H23: IGATPURI - 5 | I23: 2986 | J23: =+I23*0.0309 -> 92.2674
A24: PIPE P 5300 | B24: 118700 | C24: 1400 | D24: 8250 | E24: 13478.58 | F24: 2450.5716 | G24: 124979.1516 | H24: KALYAN - 5 | I24: 3238 | J24: =+I24*0.0309 -> 100.0542
A25: PIPE P5200(P.E-63) | B25: 114750 | C25: 1400 | D25: 7600 | E25: 13070.7 | F25: 2376.414 | G25: 121197.114 | H25: VASAI | I25: 3399 | J25: =+I25*0.0309 -> 105.0291
A26: HD T9C | B26: 103850 | C26: 0 | D26: 2350 | E26: 12545.4 | F26: 2280.908 | G26: 116326.308 | H26: KHOPOLI - 5 | I26: 3638 | J26: =+I26*0.0309 -> 112.4142
A27: OG | B27: 102850 | C27: 0 | D27: 2300 | E27: 12427.98 | F27: 2259.5596 | G27: 115237.5396 | H27: BHIWANDI - 5 | I27: 3258 | J27: 100.6722
A28: PP | H28: LONAVALA - 6 | I28: 3419 | J28: 105.6471
A29: FILM F 110 | B29: 110100 | C29: 1400 | D29: 6650 | E29: =+(B29-C29-D29)*0.1236 -> 12613.38 | F29: =+(B29-C29-D29+E29)*0.02 -> 2293.2676 | G29: 116956.6476 | H29: MURBAD - 5 | I29: 3378 | J29: 104.3802
A30: HPIM M 103 | B30: 108900 | C30: 1400 | D30: 7450 | E30: 12366.18 | F30: 2248.3236 | G30: 114664.5036 | H30: PUNE - 5 | I30: 3306 | J30: 102.1554
A31: HPIM M 110 | B31: 106550 | C31: 1400 | D31: 6800 | E31: 12156.06 | F31: 2210.1212 | G31: 112716.1812 | H31: NAGHOTHANE-5 | I31: 3440 | J31: 106.296
A32: TF T 103 / T 105N | B32: 109650 | C32: 1400 | D32: 6600 | E32: 12563.94 | F32: 2284.2788 | G32: 116498.2188 | H32: NASIK - 5 | I32: 2985 | J32: 92.2365
A33: RAFFIA R 103 | B33: 113450 | C33: 1400 | D33: 7450 | E33: 12928.56 | F33: 2350.5712 | G33: 119879.1312 | H33: SINNAR-5 | I33: 2936 | J33: 90.7224
A34: BOPP F 103 / F 103S | B34: 111350 | C34: 1400 | D34: 6900 | E34: 12736.98 | F34: 2315.7396 | G34: 118102.7196 | H34: MALEGAON-5 | I34: 3255 | J34: 100.5795
A35: PP M 108/ M106 | B35: 106450 | C35: 1400 | D35: 7200 | E35: 12094.26 | F35: 2198.8852 | G35: 112143.1452 | H35: PANVEL | I35: 3388 | J35: 104.6892
A36: PP F135 / E125 | B36: 109450 | C36: 1400 | D36: 6900 | E36: 12502.14 | F36: 2273.0428 | G36: 115925.1828
A37: PP OG | B37: 101550 | C37: 0 | D37: 0 | E37: 12551.58 | F37: 2282.0316 | G37: 116383.6116 | H37: NEW BOMBAY- 5 | I37: 3458 | J37: =+I37*0.0309 -> 106.8522
A38: PP PS | B38: 97550 | C38: 0 | D38: 0 | E38: 12057.18 | F38: 2192.1436 | G38: 111799.3236 | H38: PALGHAR - 5 | I38: 3459 | J38: =+I38*0.0309 -> 106.8831
A39: PP WS | B39: 95550 | C39: 0 | D39: 0 | E39: 11809.98 | F39: 2147.1996 | G39: 109507.1796 | H39: DHULIA - 5 | I39: 2932 | J39: =+I39*0.0309 -> 90.5988
A40: PP CP/RCP | E40: =(B40-C40-D40)*16% -> 0 | G40: =(B40-C40-D40)*16%+(B40-C40-D40) -> 0 | H40: *T.D.=TRANSIT DAYS
A41: PPCP M 311T | B41: 114400 | C41: 1400 | D41: 7750 | E41: =+(B41-C41-D41)*0.1236 -> 13008.9 | F41: =+(B41-C41-D41+E41)*0.02 -> 2365.178 | G41: 120624.078
A42: PPCP M 340 / M365 | B42: 112100 | C42: 1400 | D42: 7400 | E42: 12767.88 | F42: 2321.3576 | G42: 118389.2376
A43: PP CP M 310 | B43: 112800 | C43: 1400 | D43: 7300 | E43: 12866.76 | F43: 2339.3352 | G43: 119306.0952
A44: PP CP M 312 | B44: 110900 | C44: 1400 | D44: 7550 | E44: 12601.02 | F44: 2291.0204 | G44: 116842.0404
A45: PP CP M 304 / M 325 | B45: 110850 | C45: 1400 | D45: 7500 | E45: 12601.02 | F45: 2291.0204 | G45: 116842.0404
A46: PP CP M 307 / M 315 | B46: 110350 | C46: 1400 | D46: 7500 | E46: 12539.22 | F46: 2279.7844 | G46: 116269.0044
A47: PP RCP B 200 | B47: 111200 | C47: 1400 | D47: 7400 | E47: 12656.64 | F47: 2301.1328 | G47: 117357.7728
A48: PP RCP B202S | B48: 115200 | C48: 1400 | D48: 6100 | E48: 13311.72 | F48: 2420.2344 | G48: 123431.9544
A49: PP RCP M212S | B49: 113400 | C49: 1400 | D49: 7500 | E49: 12916.2 | F49: 2348.324 | G49: 119764.524
A50: LLDPE
A51: FILM 71601D | B51: 115950 | C51: 1400 | D51: 7700 | E51: =+(B51-C51-D51)*0.1236 -> 13206.66 | F51: =+(B51-C51-D51+E51)*0.02 -> 2401.1332 | G51: 122457.7932
A52: FILM 71501S,71601W | B52: 115400 | C52: 1400 | D52: 8150 | E52: 13083.06 | F52: 2378.6612 | G52: 121311.7212
A53: FILM 71602 S / W | B53: 115400 | C53: 1400 | D53: 8150 | E53: 13083.06 | F53: 2378.6612 | G53: 121311.7212
A54: ROTO 73005 T/73204 T | B54: 114250 | C54: 1400 | D54: 7450 | E54: 13027.44 | F54: 2368.5488 | G54: 120795.9888
A55: ROTO 73005 TU | B55: 115750 | C55: 1400 | D55: 7450 | E55: 13212.84 | F55: 2402.2568 | G55: 122515.0968
A56: EC 72307 E | B56: 118450 | C56: 1400 | D56: 8450 | E56: 13422.96 | F56: 2440.4592 | G56: 124463.4192
A57: LLT - 12 | B57: 117950 | C57: 1400 | D57: 8450 | E57: =+(B57-C57-D57)*0.1236 -> 13361.16 | F57: 2429.2232 | G57: 123890.3832
A58: OG | B58: 108850 | C58: 0 | D58: 2450 | E58: 13151.04 | F58: 2391.0208 | G58: 121942.0608
A59: POST SALES QUANTITY DISCOUNT AS APPLICABLE
A60: QTY. MT FOR HD / LL | B60: >= 10 | C60: >=15 | D60: >=30 | E60: >=60 | F60: >= 100 | G60: >= 200 | H60: >= 400
A61: HDPE/LLDPE | B61: 300/- | C61: 300/- | D61: 400/- | E61: 450/- | F61: 550/- | G61: 650/- | H61: 750/-
A62: QTY. MT FOR PP | B62: >=15 | C62: >=30 | D62: >=60 | E62: >=100 | F62: >=200 | G62: >=400
A63: PP | B63: 300/- | C63: 400/- | D63: 450/- | E63: 550/- | F63: 650/- | G63: 750/-
A64: · FOR CREDIT PURCHASE INTREST FREE CREDIT WILL BE 14 DAYS FROM THE DATE OF INVOICE. AN EPI
A65: RS. 100 / MT PER DAY FOR EX-PLANT
A66: · Trade Discount of Rs. 4000 PMT applicable on R103 - to be adjusted pre-exice basis on Ex-plant sales only.
A67: · Trade Discount of Rs. 3000 PMT applicable on R5801 - to be adjusted pre-exice basis on Ex-plant sales only.
A68: · Trade Discount of Rs. 2000 PMT applicable on B5500 - to be adjusted pre-exice basis on Ex-plant sales only.
A69: · NON PRIME GRADE RS.800/MT LESS THAN THE BASIC PRIME GRADE.
A70: · CHEQUE RETURN PENALTY RS.1000/-PER INSTRUMENT.
A71: · UNLOADING & VARAI CHARGES TO BE BORNE BY THE CUSTOMER.
A72: · “C” FORM REQUIRED IN ADVANCE.
A73: · QUANTITY DISCOUNT WOULD NOT BE APPLICABLE ON COMBINATION OF HDPE AND LLDPE GRADES.
A74: · PRICE MAY CHANGE WITHOUT ANY PRIOR NOTICE. PRICE PREVAILING AT THE TIME OF DISPATCH WILL APPLY.
A75: REGARDS
A76: HITESH SHAH - 9820106078
A77: MUKESH SHAH - 9322238059

Sheet MAHA(VIDH)
A1: GANPATI PETROCHEMICALS
A2: Consigment Stockist of : HALDIA PETROCHEMICALS LTD.
A3: 152,Sanjay Bldg. No. 6,Mittal Ind.Estate,Andheri Kurla Road,Marol,Andheri(East),MUMBAI-400 059.
A4: Tel. 28509801 / 28517451 / 32460637 Telefax. 28509802 / E- MAIL ganpetro@vsnl.com
A5: HDPE / PP / LLDPE PRICES EX-HALDIA PETROCHEMICALS LTD. PLANT FOR MAHARASTRA(vidharbh)
A6: Bhivandi W.H. Add :- Godown No. 20,Thakkar Compound,Valgaon,Anjur Rd,Bhivandi,Dist. Thane. TEL:- 09324038864
A7: HDPE, LLDPE & PP PRICE W.E.F. DT. 15.05.2014
A8: GRADE | B8: BASIC | C8: LESS. | D8: LESS. | E8: ADD | F8: ADD CST | G8: CASH AMT
A9: HDPE | C9: C.D. | D9: LOC.SUB | E9: 0.1236 | F9: 0.02 | G9: PMT
A10: M 6007L / M 5005L | B10: 110050 | C10: 1400 | D10: 5050 | E10: =+(B10-C10-D10)*0.1236 -> 12804.96 | F10: =+(B10-C10-D10+E10)*0.02 -> 2328.0992 | G10: =+B10-C10-D10+E10+F10 -> 118733.0592 | I10: TRANS.CHARGES PMT.
A11: M 6007LU | B11: 111550 | C11: 1400 | D11: 5050 | E11: =+(B11-C11-D11)*0.1236 -> 12990.36 | F11: =+(B11-C11-D11+E11)*0.02 -> 2361.8072 | G11: =+B11-C11-D11+E11+F11 -> 120452.1672
A12: M 5002L | B12: 109550 | C12: 1400 | D12: 5050 | E12: 12743.16 | F12: 2316.8632 | G12: 118160.0232
A13: HD BM B 6401 | B13: 111500 | C13: 1400 | D13: 5050 | E13: 12984.18 | F13: 2360.6836 | G13: 120394.8636 | H13: LOCATIONS | I13: FREIGHT | J13: ADD S.T.
A14: HD BM E 5201 | B14: 113000 | C14: 1400 | D14: 5050 | E14: 13169.58 | F14: 2394.3916 | G14: 122113.9716 | H14: **T.D. | I14: RS/MT. | J14: 0.0309
A15: HD BM E5201S | B15: 112000 | C15: 1400 | D15: 5050 | E15: 13045.98 | F15: 2371.9196 | G15: 120967.8996
A16: MBM B 5500 | B16: 116200 | C16: 1400 | D16: 4800 | E16: 13596 | F16: 2471.92 | G16: 126067.92
A17: HM FILM F 5600/5400 | B17: 113950 | C17: 1400 | D17: 4500 | E17: 13354.98 | F17: 2428.0996 | G17: 123833.0796 | H17: NAGPUR-3 | I17: 2135 | J17: =+I17*0.0309 -> 65.9715
A18: RAF/MFIL R5801 | B18: 111350 | C18: 1400 | D18: 3750 | E18: 13126.32 | F18: 2386.5264 | G18: 121712.8464
A19: RAF/MFIL HD T9 | B19: 108350 | C19: 1400 | D19: 3750 | E19: 12755.52 | F19: 2319.1104 | G19: 118274.6304 | H19: AMRAVATI-4 | I19: 2718 | J19: =+I19*0.0309 -> 83.9862
A20: HD FILM HDT6 / F5001 | B20: 110850 | C20: 1400 | D20: 4500 | E20: 12971.82 | F20: 2358.4364 | G20: 120280.2564
A21: PIPE P5200UV | B21: 116250 | C21: 1400 | D21: 4800 | E21: 13602.18 | F21: 2473.0436 | G21: 126125.2236 | H21: WARDHA-3 | I21: 2277 | J21: =+I21*0.0309 -> 70.3593
A22: IM M 5018L/M 5025L/M5818 | B22: 107900 | C22: 1400 | D22: 5000 | E22: 12545.4 | F22: 2280.908 | G22: 116326.308
A23: RAF HD T10 / HD T10S | B23: 110950 | C23: 1400 | D23: 4500 | E23: 12984.18 | F23: 2360.6836 | G23: 120394.8636
A24: PIPE P 5300 | B24: 118700 | C24: 1400 | D24: 5450 | E24: 13824.66 | F24: 2513.4932 | G24: 128188.1532
A25: PIPE P5200(P.E-63) | B25: 114750 | C25: 1400 | D25: 4800 | E25: 13416.78 | F25: 2439.3356 | G25: 124406.1156
A26: HD T9C | B26: 103850 | C26: 0 | D26: 2350 | E26: 12545.4 | F26: 2280.908 | G26: 116326.308
A27: OG | B27: 102850 | C27: 0 | D27: 2300 | E27: 12427.98 | F27: 2259.5596 | G27: 115237.5396
A28: PP
A29: FILM F 110 | B29: 110100 | C29: 1400 | D29: 3200 | E29: =+(B29-C29-D29)*0.1236 -> 13039.8 | F29: =+(B29-C29-D29+E29)*0.02 -> 2370.796 | G29: 120910.596 | H29: *T.D.=TRANSIT DAYS
A30: HPIM M 103 | B30: 108900 | C30: 1400 | D30: 4650 | E30: 12712.26 | F30: 2311.2452 | G30: 117873.5052
A31: HPIM M 110 | B31: 106550 | C31: 1400 | D31: 3200 | E31: 12601.02 | F31: 2291.0204 | G31: 116842.0404
A32: TF T 103 / T 105N | B32: 109650 | C32: 1400 | D32: 3550 | E32: 12940.92 | F32: 2352.8184 | G32: 119993.7384
A33: RAFFIA R 103 | B33: 113450 | C33: 1400 | D33: 4650 | E33: 13274.64 | F33: 2413.4928 | G33: 123088.1328
A34: BOPP F 103 / F 103S | B34: 111350 | C34: 1400 | D34: 4100 | E34: 13083.06 | F34: 2378.6612 | G34: 121311.7212
A35: PP M 108/ M106 | B35: 106450 | C35: 1400 | D35: 3600 | E35: 12539.22 | F35: 2279.7844 | G35: 116269.0044
A36: PP F135 / E125 | B36: 109450 | C36: 1400 | D36: 4150 | E36: 12842.04 | F36: 2334.8408 | G36: 119076.8808
A37: PP OG | B37: 101550 | C37: 0 | D37: 0 | E37: 12551.58 | F37: 2282.0316 | G37: 116383.6116
A38: PP PS | B38: 97550 | C38: 0 | D38: 0 | E38: 12057.18 | F38: 2192.1436 | G38: 111799.3236
A39: PP WS | B39: 95550 | C39: 0 | D39: 0 | E39: 11809.98 | F39: 2147.1996 | G39: 109507.1796
A40: PP CP/RCP | E40: =(B40-C40-D40)*16% -> 0 | G40: =(B40-C40-D40)*16%+(B40-C40-D40) -> 0
A41: PPCP M 311T | B41: 114400 | C41: 1400 | D41: 4950 | E41: =+(B41-C41-D41)*0.1236 -> 13354.98 | F41: =+(B41-C41-D41+E41)*0.02 -> 2428.0996 | G41: 123833.0796
A42: PPCP M 340 / M365 | B42: 112100 | C42: 1400 | D42: 4650 | E42: 13107.78 | F42: 2383.1556 | G42: 121540.9356
A43: PP CP M 310 | B43: 112800 | C43: 1400 | D43: 4500 | E43: 13212.84 | F43: 2402.2568 | G43: 122515.0968
A44: PP CP M 312 | B44: 110900 | C44: 1400 | D44: 4750 | E44: 12947.1 | F44: 2353.942 | G44: 120051.042
A45: PP CP M 304 / M 325 | B45: 110850 | C45: 1400 | D45: 4750 | E45: 12940.92 | F45: 2352.8184 | G45: 119993.7384
A46: PP CP M 307 / M 315 | B46: 110350 | C46: 1400 | D46: 4700 | E46: 12885.3 | F46: 2342.706 | G46: 119478.006
A47: PP RCP B 200 | B47: 111200 | C47: 1400 | D47: 4650 | E47: 12996.54 | F47: 2362.9308 | G47: 120509.4708
A48: PP RCP B202S | B48: 115200 | C48: 1400 | D48: 3450 | E48: 13639.26 | F48: 2479.7852 | G48: 126469.0452
A49: PP RCP M212S | B49: 113400 | C49: 1400 | D49: 4800 | E49: 13249.92 | F49: 2408.9984 | G49: 122858.9184
A50: LLDPE
A51: FILM 71601D | B51: 115950 | C51: 1400 | D51: 4750 | E51: =+(B51-C51-D51)*0.1236 -> 13571.28 | F51: =+(B51-C51-D51+E51)*0.02 -> 2467.4256 | G51: 125838.7056
A52: FILM 71501S,71601W | B52: 115400 | C52: 1400 | D52: 5200 | E52: 13447.68 | F52: 2444.9536 | G52: 124692.6336
A53: FILM 71602 S / W | B53: 115400 | C53: 1400 | D53: 5200 | E53: 13447.68 | F53: 2444.9536 | G53: 124692.6336
A54: ROTO 73005 T/73204 T | B54: 114250 | C54: 1400 | D54: 4550 | E54: 13385.88 | F54: 2433.7176 | G54: 124119.5976
A55: ROTO 73005 TU | B55: 115750 | C55: 1400 | D55: 4550 | E55: 13571.28 | F55: 2467.4256 | G55: 125838.7056
A56: EC 72307 E | B56: 118450 | C56: 1400 | D56: 5650 | E56: 13769.04 | F56: 2503.3808 | G56: 127672.4208
A57: LLT - 12 | B57: 117950 | C57: 1400 | D57: 5650 | E57: =+(B57-C57-D57)*0.1236 -> 13707.24 | F57: 2492.1448 | G57: 127099.3848
A58: OG | B58: 108850 | C58: 0 | D58: 2450 | E58: 13151.04 | F58: 2391.0208 | G58: 121942.0608
A59: POST SALES QUANTITY DISCOUNT AS APPLICABLE
A60: QTY. MT FOR HD / LL | B60: >= 10 | C60: >=15 | D60: >=30 | E60: >=60 | F60: >= 100 | G60: >= 200 | H60: >= 400
A61: HDPE/LLDPE | B61: 300/- | C61: 300/- | D61: 400/- | E61: 450/- | F61: 550/- | G61: 650/- | H61: 750/-
A62: QTY. MT FOR PP | B62: >=15 | C62: >=30 | D62: >=60 | E62: >=100 | F62: >=200 | G62: >=400
A63: PP | B63: 300/- | C63: 400/- | D63: 450/- | E63: 550/- | F63: 650/- | G63: 750/-
A64: · FOR CREDIT PURCHASE INTREST FREE CREDIT WILL BE 14 DAYS FROM THE DATE OF INVOICE. AN EPI
A65: RS. 100 / MT PER DAY FOR EX-PLANT
A66: · Trade Discount of Rs. 4000 PMT applicable on R103 - to be adjusted pre-exice basis on Ex-plant sales only.
A67: · Trade Discount of Rs. 3000 PMT applicable on R5801 - to be adjusted pre-exice basis on Ex-plant sales only.
A68: · Trade Discount of Rs. 2000 PMT applicable on B5500 - to be adjusted pre-exice basis on Ex-plant sales only.
A69: · NON PRIME GRADE RS.800/MT LESS THAN THE BASIC PRIME GRADE.
A70: · CHEQUE RETURN PENALTY RS.1000/-PER INSTRUMENT.
A71: · UNLOADING & VARAI CHARGES TO BE BORNE BY THE CUSTOMER.
A72: · “C” FORM REQUIRED IN ADVANCE.
A73: · QUANTITY DISCOUNT WOULD NOT BE APPLICABLE ON COMBINATION OF HDPE AND LLDPE GRADES.
A74: · PRICE MAY CHANGE WITHOUT ANY PRIOR NOTICE. PRICE PREVAILING AT THE TIME OF DISPATCH WILL APPLY.
A75: REGARDS
A76: HITESH SHAH - 9820106078
A77: MUKESH SHAH - 9322238059

Sheet MAHA(KHAN)
A1: GANPATI PETROCHEMICALS
A2: Consigment Stockist of : HALDIA PETROCHEMICALS LTD.
A3: 152,Sanjay Bldg. No. 6,Mittal Ind.Estate,Andheri Kurla Road,Marol,Andheri(East),MUMBAI-400 059.
A4: Tel. 28509801 / 28517451 / 32460637 Telefax. 28509802 / E- MAIL ganpetro@vsnl.com
A5: HDPE / PP / LLDPE PRICES EX-HALDIA PETROCHEMICALS LTD. PLANT FOR MAHARASTRA(khandesh)
A6: Bhivandi W.H. Add :- Godown No. 20,Thakkar Compound,Valgaon,Anjur Rd,Bhivandi,Dist. Thane. TEL:- 09324038864
A7: HDPE, LLDPE & PP PRICE W.E.F. DT. 15.05.2014
B8: BASIC | C8: LESS. | D8: LESS. | E8: ADD | F8: ADD CST | G8: CASH AMT
A9: HDPE | C9: C.D. | D9: LOC.SUB | E9: 0.1236 | F9: 0.02 | G9: PMT
A10: M 6007L / M 5005L | B10: 110050 | C10: 1400 | D10: 6400 | E10: =+(B10-C10-D10)*0.1236 -> 12638.1 | F10: =+(B10-C10-D10+E10)*0.02 -> 2297.762 | G10: =+B10-C10-D10+E10+F10 -> 117185.862 | I10: TRANS.CHARGES PMT.
A11: M 6007LU | B11: 111550 | C11: 1400 | D11: 6400 | E11: =+(B11-C11-D11)*0.1236 -> 12823.5 | F11: =+(B11-C11-D11+E11)*0.02 -> 2331.47 | G11: =+B11-C11-D11+E11+F11 -> 118904.97
A12: M 5002L | B12: 109550 | C12: 1400 | D12: 6400 | E12: 12576.3 | F12: 2286.526 | G12: 116612.826
A13: HD BM B 6401 | B13: 111500 | C13: 1400 | D13: 6400 | E13: 12817.32 | F13: 2330.3464 | G13: 118847.6664 | H13: LOCATIONS | I13: FREIGHT | J13: ADD S.T.
A14: HD BM E 5201 | B14: 113000 | C14: 1400 | D14: 6400 | E14: 13002.72 | F14: 2364.0544 | G14: 120566.7744 | H14: **T.D. | I14: RS/MT. | J14: 0.0309
A15: HD BM E5201S | B15: 112000 | C15: 1400 | D15: 6400 | E15: 12879.12 | F15: 2341.5824 | G15: 119420.7024
A16: MBM B 5500 | B16: 116200 | C16: 1400 | D16: 6150 | E16: 13429.14 | F16: 2441.5828 | G16: 124520.7228
A17: HM FILM F 5600/5400 | B17: 113950 | C17: 1400 | D17: 5700 | E17: 13206.66 | F17: 2401.1332 | G17: 122457.7932 | H17: AURANGABAD-4 | I17: 2932 | J17: =+I17*0.0309 -> 90.5988
A18: RAF/MFIL R5801 | B18: 111350 | C18: 1400 | D18: 5150 | E18: 12953.28 | F18: 2355.0656 | G18: 120108.3456
A19: RAF/MFIL HD T9 | B19: 108350 | C19: 1400 | D19: 5150 | E19: 12582.48 | F19: 2287.6496 | G19: 116670.1296 | H19: JALNA-4 | I19: 2881 | J19: =+I19*0.0309 -> 89.0229
A20: HD FILM HDT6 / F5001 | B20: 110850 | C20: 1400 | D20: 5750 | E20: 12817.32 | F20: 2330.3464 | G20: 118847.6664 | H20: JALGAON-4 | I20: 2737 | J20: =+I20*0.0309 -> 84.5733
A21: PIPE P5200UV | B21: 116250 | C21: 1400 | D21: 6150 | E21: 13435.32 | F21: 2442.7064 | G21: 124578.0264 | H21: LATUR-5 | I21: 3115 | J21: =+I21*0.0309 -> 96.2535
A22: IM M 5018L/M 5025L/M5818 | B22: 107900 | C22: 1400 | D22: 6200 | E22: 12397.08 | F22: 2253.9416 | G22: 114951.0216
A23: RAF HD T10 / HD T10S | B23: 110950 | C23: 1400 | D23: 5750 | E23: 12829.68 | F23: 2332.5936 | G23: 118962.2736 | H23: NANDED-4 | I23: 3080 | J23: =+I23*0.0309 -> 95.172
A24: PIPE P 5300 | B24: 118700 | C24: 1400 | D24: 6800 | E24: 13657.8 | F24: 2483.156 | G24: 126640.956
A25: PIPE P5200(P.E-63) | B25: 114750 | C25: 1400 | D25: 6150 | E25: 13249.92 | F25: 2408.9984 | G25: 122858.9184 | H25: CHALISGAON | I25: 2817 | J25: =+I25*0.0309 -> 87.0453
A26: HD T9C | B26: 103850 | C26: 0 | D26: 2350 | E26: 12545.4 | F26: 2280.908 | G26: 116326.308
A27: OG | B27: 102850 | C27: 0 | D27: 2300 | E27: 12427.98 | F27: 2259.5596 | G27: 115237.5396
A28: PP
A29: FILM F 110 | B29: 110100 | C29: 1400 | D29: 5250 | E29: =+(B29-C29-D29)*0.1236 -> 12786.42 | F29: =+(B29-C29-D29+E29)*0.02 -> 2324.7284 | G29: =+B29-C29-D29+E29+F29 -> 118561.1484 | H29: *T.D.=TRANSIT DAYS
A30: HPIM M 103 | B30: 108900 | C30: 1400 | D30: 6050 | E30: 12539.22 | F30: 2279.7844 | G30: 116269.0044
A31: HPIM M 110 | B31: 106550 | C31: 1400 | D31: 4600 | E31: 12427.98 | F31: 2259.5596 | G31: 115237.5396
A32: TF T 103 / T 105N | B32: 109650 | C32: 1400 | D32: 5200 | E32: 12736.98 | F32: 2315.7396 | G32: 118102.7196
A33: RAFFIA R 103 | B33: 113450 | C33: 1400 | D33: 6050 | E33: 13101.6 | F33: 2382.032 | G33: 121483.632
A34: BOPP F 103 / F 103S | B34: 111350 | C34: 1400 | D34: 5450 | E34: 12916.2 | F34: 2348.324 | G34: 119764.524
A35: PP M 108/ M106 | B35: 106450 | C35: 1400 | D35: 5000 | E35: 12366.18 | F35: 2248.3236 | G35: 114664.5036
A36: PP F135 / E125 | B36: 109450 | C36: 1400 | D36: 5450 | E36: 12681.36 | F36: 2305.6272 | G36: 117586.9872
A37: PP OG | B37: 101550 | C37: 0 | D37: 0 | E37: 12551.58 | F37: 2282.0316 | G37: 116383.6116
A38: PP PS | B38: 97550 | C38: 0 | D38: 0 | E38: 12057.18 | F38: 2192.1436 | G38: 111799.3236
A39: PP WS | B39: 95550 | C39: 0 | D39: 0 | E39: 11809.98 | F39: 2147.1996 | G39: 109507.1796
A40: PP CP/RCP | E40: =(B40-C40-D40)*16% -> 0 | G40: =(B40-C40-D40)*16%+(B40-C40-D40) -> 0
A41: PPCP M 311T | B41: 114400 | C41: 1400 | D41: 6300 | E41: =+(B41-C41-D41)*0.1236 -> 13188.12 | F41: =+(B41-C41-D41+E41)*0.02 -> 2397.7624 | G41: =+B41-C41-D41+E41+F41 -> 122285.8824
A42: PPCP M 340 / M365 | B42: 112100 | C42: 1400 | D42: 5950 | E42: 12947.1 | F42: 2353.942 | G42: 120051.042
A43: PP CP M 310 | B43: 112800 | C43: 1400 | D43: 5850 | E43: 13045.98 | F43: 2371.9196 | G43: 120967.8996
A44: PP CP M 312 | B44: 110900 | C44: 1400 | D44: 6150 | E44: 12774.06 | F44: 2322.4812 | G44: 118446.5412
A45: PP CP M 304 / M 325 | B45: 110850 | C45: 1400 | D45: 6100 | E45: 12774.06 | F45: 2322.4812 | G45: 118446.5412
A46: PP CP M 307 / M 315 | B46: 110350 | C46: 1400 | D46: 6100 | E46: 12712.26 | F46: 2311.2452 | G46: 117873.5052
A47: PP RCP B 200 | B47: 111200 | C47: 1400 | D47: 6000 | E47: 12829.68 | F47: 2332.5936 | G47: 118962.2736
A48: PP RCP B202S | B48: 115200 | C48: 1400 | D48: 4950 | E48: 13453.86 | F48: 2446.0772 | G48: 124749.9372
A49: PP RCP M212S | B49: 113400 | C49: 1400 | D49: 6150 | E49: 13083.06 | F49: 2378.6612 | G49: 121311.7212
A50: LLDPE
A51: FILM 71601D | B51: 115950 | C51: 1400 | D51: 6150 | E51: =+(B51-C51-D51)*0.1236 -> 13398.24 | F51: =+(B51-C51-D51+E51)*0.02 -> 2435.9648 | G51: =+B51-C51-D51+E51+F51 -> 124234.2048
A52: FILM 71501S,71601W | B52: 115400 | C52: 1400 | D52: 6600 | E52: 13274.64 | F52: 2413.4928 | G52: 123088.1328
A53: FILM 71602 S / W | B53: 115400 | C53: 1400 | D53: 6600 | E53: 13274.64 | F53: 2413.4928 | G53: 123088.1328
A54: ROTO 73005 T/73204 T | B54: 114250 | C54: 1400 | D54: 5950 | E54: 13212.84 | F54: 2402.2568 | G54: 122515.0968
A55: ROTO 73005 TU | B55: 115750 | C55: 1400 | D55: 5950 | E55: 13398.24 | F55: 2435.9648 | G55: 124234.2048
A56: EC 72307 E | B56: 118450 | C56: 1400 | D56: 7000 | E56: 13602.18 | F56: 2473.0436 | G56: 126125.2236
A57: LLT - 12 | B57: 117950 | C57: 1400 | D57: 7000 | E57: =+(B57-C57-D57)*0.1236 -> 13540.38 | F57: 2461.8076 | G57: 125552.1876
A58: OG | B58: 108850 | C58: 0 | D58: 2450 | E58: 13151.04 | F58: 2391.0208 | G58: 121942.0608
A59: POST SALES QUANTITY DISCOUNT AS APPLICABLE
A60: QTY. MT FOR HD / LL | B60: >= 10 | C60: >=15 | D60: >=30 | E60: >=60 | F60: >= 100 | G60: >= 200 | H60: >= 400
A61: HDPE/LLDPE | B61: 300/- | C61: 300/- | D61: 400/- | E61: 450/- | F61: 550/- | G61: 650/- | H61: 750/-
A62: QTY. MT FOR PP | B62: >=15 | C62: >=30 | D62: >=60 | E62: >=100 | F62: >=200 | G62: >=400
A63: PP | B63: 300/- | C63: 400/- | D63: 450/- | E63: 550/- | F63: 650/- | G63: 750/-
A64: · FOR CREDIT PURCHASE INTREST FREE CREDIT WILL BE 14 DAYS FROM THE DATE OF INVOICE. AN EPI
A65: RS. 100 / MT PER DAY FOR EX-PLANT
A66: · Trade Discount of Rs. 4000 PMT applicable on R103 - to be adjusted pre-exice basis on Ex-plant sales only.
A67: · Trade Discount of Rs. 3000 PMT applicable on R5801 - to be adjusted pre-exice basis on Ex-plant sales only.
A68: · Trade Discount of Rs. 2000 PMT applicable on B5500 - to be adjusted pre-exice basis on Ex-plant sales only.
A69: · NON PRIME GRADE RS.800/MT LESS THAN THE BASIC PRIME GRADE.
A70: · CHEQUE RETURN PENALTY RS.1000/-PER INSTRUMENT.
A71: · UNLOADING & VARAI CHARGES TO BE BORNE BY THE CUSTOMER.
A72: · “C” FORM REQUIRED IN ADVANCE.
A73: · QUANTITY DISCOUNT WOULD NOT BE APPLICABLE ON COMBINATION OF HDPE AND LLDPE GRADES.
A74: · PRICE MAY CHANGE WITHOUT ANY PRIOR NOTICE. PRICE PREVAILING AT THE TIME OF DISPATCH WILL APPLY.
A75: REGARDS
A76: HITESH SHAH - 9820106078
A77: MUKESH SHAH - 9322238059

Sheet MAHA(SOUTH)
A1: GANPATI PETROCHEMICALS
A2: Consigment Stockist of : HALDIA PETROCHEMICALS LTD.
A3: 152,Sanjay Bldg. No. 6,Mittal Ind.Estate,Andheri Kurla Road,Marol,Andheri(East),MUMBAI-400 059.
A4: Tel. 28509801 / 28517451 / 32460637 Telefax. 28509802 / E- MAIL ganpetro@vsnl.com
A5: HDPE / PP / LLDPE PRICES EX-HALDIA PETROCHEMICALS LTD. PLANT FOR MAHARASTRA(SOUTH)
A6: Bhivandi W.H. Add :- Godown No. 20,Thakkar Compound,Valgaon,Anjur Rd,Bhivandi,Dist. Thane. TEL:- 09324038864
A7: HDPE, LLDPE & PP PRICE W.E.F. DT. 15.05.2014
A8: GRADE | B8: BASIC | C8: LESS. | D8: LESS. | E8: ADD | F8: ADD CST | G8: CASH AMT
A9: HDPE | C9: C.D. | D9: LOC.SUB | E9: 0.1236 | F9: 0.02 | G9: PMT
A10: M 6007L / M 5005L | B10: 110050 | C10: 1400 | D10: 7150 | E10: =+(B10-C10-D10)*0.1236 -> 12545.4 | F10: =+(B10-C10-D10+E10)*0.02 -> 2280.908 | G10: =+B10-C10-D10+E10+F10 -> 116326.308 | I10: TRANS.CHARGES PMT.
A11: M 6007LU | B11: 111550 | C11: 1400 | D11: 7150 | E11: =+(B11-C11-D11)*0.1236 -> 12730.8 | F11: =+(B11-C11-D11+E11)*0.02 -> 2314.616 | G11: =+B11-C11-D11+E11+F11 -> 118045.416
A12: M 5002L | B12: 109550 | C12: 1400 | D12: 7150 | E12: 12483.6 | F12: 2269.672 | G12: 115753.272
A13: HD BM B 6401 | B13: 111500 | C13: 1400 | D13: 7200 | E13: 12718.44 | F13: 2312.3688 | G13: 117930.8088 | H13: LOCATIONS | I13: FREIGHT | J13: ADD S.T.
A14: HD BM E 5201 | B14: 113000 | C14: 1400 | D14: 7200 | E14: 12903.84 | F14: 2346.0768 | G14: 119649.9168 | H14: **T.D. | I14: RS/MT. | J14: 0.0309
A15: HD BM E5201S | B15: 112000 | C15: 1400 | D15: 7200 | E15: 12780.24 | F15: 2323.6048 | G15: 118503.8448
A16: MBM B 5500 | B16: 116200 | C16: 1400 | D16: 6950 | E16: 13330.26 | F16: 2423.6052 | G16: 123603.8652
A17: HM FILM F 5600/5400 | B17: 113950 | C17: 1400 | D17: 6800 | E17: 13070.7 | F17: 2376.414 | G17: 121197.114 | H17: SANGLI - 6 | I17: 3374 | J17: =+I17*0.0309 -> 104.2566
A18: RAF/MFIL R5801 | B18: 111350 | C18: 1400 | D18: 5750 | E18: 12879.12 | F18: 2341.5824 | G18: 119420.7024 | H18: SATARA - 5 | I18: 3450 | J18: =+I18*0.0309 -> 106.605
A19: RAF/MFIL HD T9 | B19: 108350 | C19: 1400 | D19: 5750 | E19: 12508.32 | F19: 2274.1664 | G19: 115982.4864 | H19: KOLHAPUR-6 | I19: 3361 | J19: =+I19*0.0309 -> 103.8549
A20: HD FILM HDT6 / F5001 | B20: 110850 | C20: 1400 | D20: 6450 | E20: 12730.8 | F20: 2314.616 | G20: 118045.416 | H20: RATNAGIRI - 6 | I20: 3917 | J20: =+I20*0.0309 -> 121.0353
A21: PIPE P5200UV | B21: 116250 | C21: 1400 | D21: 7000 | E21: 13330.26 | F21: 2423.6052 | G21: 123603.8652
A22: IM M 5018L/M 5025L/M5818 | B22: 107900 | C22: 1400 | D22: 6700 | E22: 12335.28 | F22: 2242.7056 | G22: 114377.9856 | H22: WAI | I22: 3453 | J22: =+I22*0.0309 -> 106.6977
A23: RAF HD T10 / HD T10S | B23: 110950 | C23: 1400 | D23: 6250 | E23: 12767.88 | F23: 2321.3576 | G23: 118389.2376 | H23: SOLAPUR - 6 | I23: 3263 | J23: =+I23*0.0309 -> 100.8267
A24: PIPE P 5300 | B24: 118700 | C24: 1400 | D24: 7550 | E24: 13565.1 | F24: 2466.302 | G24: 125781.402
A25: PIPE P5200(P.E-63) | B25: 114750 | C25: 1400 | D25: 7000 | E25: 13144.86 | F25: 2389.8972 | G25: 121884.7572
A26: HD T9C | B26: 103850 | C26: 0 | D26: 2350 | E26: 12545.4 | F26: 2280.908 | G26: 116326.308
A27: OG | B27: 102850 | C27: 0 | D27: 2300 | E27: 12427.98 | F27: 2259.5596 | G27: 115237.5396
A28: PP
A29: FILM F 110 | B29: 110100 | C29: 1400 | D29: 6650 | E29: =+(B29-C29-D29)*0.1236 -> 12613.38 | F29: =+(B29-C29-D29+E29)*0.02 -> 2293.2676 | G29: =+B29-C29-D29+E29+F29 -> 116956.6476 | H29: *T.D.=TRANSIT DAYS
A30: HPIM M 103 | B30: 108900 | C30: 1400 | D30: 7450 | E30: 12366.18 | F30: 2248.3236 | G30: 114664.5036
A31: HPIM M 110 | B31: 106550 | C31: 1400 | D31: 6800 | E31: 12156.06 | F31: 2210.1212 | G31: 112716.1812
A32: TF T 103 / T 105N | B32: 109650 | C32: 1400 | D32: 6600 | E32: 12563.94 | F32: 2284.2788 | G32: 116498.2188
A33: RAFFIA R 103 | B33: 113450 | C33: 1400 | D33: 7450 | E33: 12928.56 | F33: 2350.5712 | G33: 119879.1312
A34: BOPP F 103 / F 103S | B34: 111350 | C34: 1400 | D34: 6900 | E34: 12736.98 | F34: 2315.7396 | G34: 118102.7196
A35: PP M 108/ M106 | B35: 106450 | C35: 1400 | D35: 7200 | E35: 12094.26 | F35: 2198.8852 | G35: 112143.1452
A36: PP F135 / E125 | B36: 109450 | C36: 1400 | D36: 6900 | E36: 12502.14 | F36: 2273.0428 | G36: 115925.1828
A37: PP OG | B37: 101550 | C37: 0 | D37: 0 | E37: 12551.58 | F37: 2282.0316 | G37: 116383.6116
A38: PP PS | B38: 97550 | C38: 0 | D38: 0 | E38: 12057.18 | F38: 2192.1436 | G38: 111799.3236
A39: PP WS | B39: 95550 | C39: 0 | D39: 0 | E39: 11809.98 | F39: 2147.1996 | G39: 109507.1796
A40: PP CP/RCP
A41: PPCP M 311T | B41: 114400 | C41: 1400 | D41: 7750 | E41: =+(B41-C41-D41)*0.1236 -> 13008.9 | F41: =+(B41-C41-D41+E41)*0.02 -> 2365.178 | G41: =+B41-C41-D41+E41+F41 -> 120624.078
A42: PPCP M 340 / M365 | B42: 112100 | C42: 1400 | D42: 7400 | E42: 12767.88 | F42: 2321.3576 | G42: 118389.2376
A43: PP CP M 310 | B43: 112800 | C43: 1400 | D43: 7300 | E43: 12866.76 | F43: 2339.3352 | G43: 119306.0952
A44: PP CP M 312 | B44: 110900 | C44: 1400 | D44: 7550 | E44: 12601.02 | F44: 2291.0204 | G44: 116842.0404
A45: PP CP M 304 / M 325 | B45: 110850 | C45: 1400 | D45: 7500 | E45: 12601.02 | F45: 2291.0204 | G45: 116842.0404
A46: PP CP M 307 / M 315 | B46: 110350 | C46: 1400 | D46: 7500 | E46: 12539.22 | F46: 2279.7844 | G46: 116269.0044
A47: PP RCP B 200 | B47: 111200 | C47: 1400 | D47: 7400 | E47: 12656.64 | F47: 2301.1328 | G47: 117357.7728
A48: PP RCP B202S | B48: 115200 | C48: 1400 | D48: 6100 | E48: 13311.72 | F48: 2420.2344 | G48: 123431.9544
A49: PP RCP M212S | B49: 113400 | C49: 1400 | D49: 7500 | E49: 12916.2 | F49: 2348.324 | G49: 119764.524
A50: LLDPE
A51: FILM 71601D | B51: 115950 | C51: 1400 | D51: 6750 | E51: =+(B51-C51-D51)*0.1236 -> 13324.08 | F51: =+(B51-C51-D51+E51)*0.02 -> 2422.4816 | G51: =+B51-C51-D51+E51+F51 -> 123546.5616
A52: FILM 71501S,71601W | B52: 115400 | C52: 1400 | D52: 7200 | E52: 13200.48 | F52: 2400.0096 | G52: 122400.4896
A53: FILM 71602 S / W | B53: 115400 | C53: 1400 | D53: 7200 | E53: 13200.48 | F53: 2400.0096 | G53: 122400.4896
A54: ROTO 73005 T/73204 T | B54: 114250 | C54: 1400 | D54: 6550 | E54: 13138.68 | F54: 2388.7736 | G54: 121827.4536
A55: ROTO 73005 TU | B55: 115750 | C55: 1400 | D55: 6550 | E55: 13324.08 | F55: 2422.4816 | G55: 123546.5616
A56: EC 72307 E | B56: 118450 | C56: 1400 | D56: 7800 | E56: 13503.3 | F56: 2455.066 | G56: 125208.366
A57: LLT - 12 | B57: 117950 | C57: 1400 | D57: 7800 | E57: =+(B57-C57-D57)*0.1236 -> 13441.5 | F57: 2443.83 | G57: 124635.33
A58: OG | B58: 108850 | C58: 0 | D58: 2450 | E58: 13151.04 | F58: 2391.0208 | G58: 121942.0608
A59: POST SALES QUANTITY DISCOUNT AS APPLICABLE
A60: QTY. MT FOR HD / LL | B60: >= 10 | C60: >=15 | D60: >=30 | E60: >=60 | F60: >= 100 | G60: >= 200 | H60: >= 400
A61: HDPE/LLDPE | B61: 300/- | C61: 300/- | D61: 400/- | E61: 450/- | F61: 550/- | G61: 650/- | H61: 750/-
A62: QTY. MT FOR PP | B62: >=15 | C62: >=30 | D62: >=60 | E62: >=100 | F62: >=200 | G62: >=400
A63: PP | B63: 300/- | C63: 400/- | D63: 450/- | E63: 550/- | F63: 650/- | G63: 750/-
A64: · FOR CREDIT PURCHASE INTREST FREE CREDIT WILL BE 14 DAYS FROM THE DATE OF INVOICE. AN EPI
A65: RS. 100 / MT PER DAY FOR EX-PLANT
A66: · Trade Discount of Rs. 4000 PMT applicable on R103 - to be adjusted pre-exice basis on Ex-plant sales only.
A67: · Trade Discount of Rs. 3000 PMT applicable on R5801 - to be adjusted pre-exice basis on Ex-plant sales only.
A68: · Trade Discount of Rs. 2000 PMT applicable on B5500 - to be adjusted pre-exice basis on Ex-plant sales only.
A69: · NON PRIME GRADE RS.800/MT LESS THAN THE BASIC PRIME GRADE.
A70: · CHEQUE RETURN PENALTY RS.1000/-PER INSTRUMENT.
A71: · UNLOADING & VARAI CHARGES TO BE BORNE BY THE CUSTOMER.
A72: · “C” FORM REQUIRED IN ADVANCE.
A73: · QUANTITY DISCOUNT WOULD NOT BE APPLICABLE ON COMBINATION OF HDPE AND LLDPE GRADES.
A74: · PRICE MAY CHANGE WITHOUT ANY PRIOR NOTICE. PRICE PREVAILING AT THE TIME OF DISPATCH WILL APPLY.
A75: REGARDS
A76: HITESH SHAH - 9820106078
A77: MUKESH SHAH - 9322238059

Sheet STOCK POINT
A1: GANPATI PETROCHEMICALS
A2: Consigment Stockist of : HALDIA PETROCHEMICALS LTD.
A3: 152,Sanjay Bldg. No. 6,Mittal Ind.Estate,Andheri Kurla Road,Marol,Andheri(East),MUMBAI-400 059.
A4: Tel. 28509801 / 28517451 Telefax. 28509802 E- MAIL ganpetro@vsnl.com
A5: Daman W.H.Add. :- House No. DGGP/10-B, Survey No. 747 & 748, Village Kalaria, Nani Daman,
A6: Daman - 396 210. Tel :- 0260 - 2240086, Mobile - 09377319643
A7: STOCK POINT HD, LL & PP CREDIT PRICE W.E.F. DT. 15.05.2014
C8: DAMAN
B9: HDPE
B10: IM M 6007L / M 5005L | C10: 121672
B11: M 5002 L | C11: 121110
B12: M5018 L / M 5025L / M5818 | C12: 118915
B13: HD BM B 6401 | C13: 123338
B14: HD BM/FILM E 5201S | C14: 123900
B15: HD BM/FILM E 5201 | C15: 125062
B16: HD T10 | C16: 123798
B17: HM B 5500 | C17: 126772
B18: HM FILM F 5600/5400 | C18: 126153
B19: MFIL/RAF R5801 | C19: 121223
B20: RAF / HD T 9 / R 6001L | C20: 121156
B21: HD T 6 / F 5001 | C21: 122764
B22: P5200 ( P.E. - 63 ) | C22: 127359
B23: PIPE P 5300 | C23: 131150
B24: PIPE P5200UV | C24: 129045
B25: PP
B26: FILM F 110 | C26: 122990
B27: HPIM M 110 | C27: 118870
B28: HPIM M 103 | C28: 120820
B29: RAFFIA R 103 | C29: 121460
B30: HPIM M108 / M106 | C30: 118300
B31: HP PP F135 / E125 | C31: 122780
B32: PP F103 | C32: 124270
B33: PP CP/RCP
B34: PP CP M 340 / M365 | C34: 124560
B35: PP CP M 312 | C35: 122950
B36: PP CP M 304 / M 325 | C36: 122890
B37: PP CP M 307 / M 315 | C37: 122370
B38: PP RCP B 200 | C38: 124270
B39: TF T 103 / T 105N | C39: 123060
B40: PP CP M 310 | C40: 125420
B41: PP RCP M212S | C41: 125820
B42: B202S | C42: 129330
B43: LLDPE
B44: FILM 71601D | C44: 128598
B45: FILM 71601W / 71602 S/W | C45: 127474
B46: ROTO 73005 T / 73204 T | C46: 126957
B47: ROTO 73005 TU / 73204 TU | C47: 128642
B48: FILM 71501 S | C48: 127474
B49: EC 72307 E | C49: 130633
B50: LLT-12 | C50: 130071
A51: The above prices are Credit Prices & are inclusive of Excise Duty @ 12.36 %.
A52: Local VAT Tax and other duties and levies applicable at prevailing rate.
A53: Transportation Charges from our Warehouse in Customers Account.
A54: Cash disc. For Ex-stock sales will be Rs. 1400/- per MT on HDPE, LLDPE, PP & PPCP
A55: Non Prime Grade Rs. 900/MT less than the Prime Grade
A56: on post-ED basis for cash customer.
A57: PRICE MAY CHANGE WITHOUT ANY PRIOR NOTICE. PRICE PREVAILING AT THE TIME OF DISPATCH WILL APPLY.
A58: REGARDS
A59: HITESH SHAH - 9820106078
A60: MUKESH SHAH - 9322238059

Sheet Sheet1
